Workbook

Sheet CALCULATIONS
A1: Sinusoida curve and curvature | Z1: 12
F2: time | L2: =Z1*dt -> 1.2 | AF2: 190
A3: lamda | B3: 150
A4: kapa | B4: =2*PI()/lamda -> 0.04188790205
A5: v0 | B5: 15
A6: accelaration | B6: -4
A7: Maxy | B7: 100 | C7: Maximum y
A8: dt | B8: 0.1
A11: S0 | B11: 150
A12: s current | B12: =S0+v0*L2+0.5*accelaration*L2^2 -> 165.12 | C12: Dy/dx | D12: =Maxy*kapa*COS(kapa*B13) -> -3.092958179
A13: x current | B13: ='Landen transform'!HI2 -> 57.33099797 | C13: angleof V | D13: =ATAN(D12) -> -1.25808914
A14: Y current | B14: =Maxy*SIN(kapa*B13) -> 67.43746227 | C14: Dy/dx | Q14: Function antieLLE2(xa, ak, eplirous)
A15: v curretn | B15: =v0+accelaration*L2 -> 10.2 | C15: d²y/dx² | D15: =-Maxy*kapa^2*SIN(kapa*B13) -> -0.1183255243 | P15: EPLIROUS
A16: VX | B16: =B15*COS(D13) -> 3.137883732 | C16: =B15/SQRT(1+(Maxy*kapa*COS(kapa*B13))^2) -> 3.137883732 | Q16: Function elle2(phi, ak) As Double
A17: VY | B17: =B15*SIN(D13) -> -9.705343151
A18: s | C18: Ρ | D18: =(1+D12^2)^(1.5)/D15 -> -290.2762707 | E18: centripetl | F18: =B15^2/D18 -> -0.3584171718 | G18: =-1/dy/dx | H18: =-1/D12 -> 0.3233150732
A19: t | F19: akx | G19: φ vertical | H19: =ATAN(H18) -> 0.3127071864 | I19: =COS(H19) -> 0.9515042305 | K19: synim = 1 / Sqr(1 + paragogos ^ 2) | N19: =1/SQRT(1+D12^2) -> 0.30763566 | Q19: kapaelliptic | R19: =Maxy*kapa/SQRT(1+(Maxy*kapa)^2) -> 0.9726663923
A20: r | B20: rx | C20: ry | G20: =-F18*N20 -> -0.3410354553 | H20: =F18*N19 -> -0.1102619032 | I20: =SIN(H19) -> 0.30763566 | K20: hmiton = paragogos * synim | N20: =D12*N19 -> -0.9515042305 | Q20: polepsilon | R20: =SQRT(1+Maxy^2*kapa^2) -> 4.306502453
A21: =(1+D12^2)^1.5/D15 -> -290.2762707 | B21: =xcurrent-A21*hmiton -> -218.8681016 | C21: =ycurrent+A21*synim -> -21.86186984 | D21: =B16 -> 3.137883732 | E21: =B17 -> -9.705343151 | G21: =G20 -> -0.3410354553 | H21: =H20 -> -0.1102619032 | AB21: circle of curvaute
B22: =xcurrent -> 57.33099797 | C22: =ycurrent -> 67.43746227 | D22: vx | E22: vy | G22: akx | H22: aky | Q22: total acceleration | AA22: φ | AB22: f
B23: =1/SQRT(1+Maxy^2*kapa^2*(COS(kapa*B13))^2)*B15 -> 3.137883732 | D23: =B13 -> 57.33099797 | E23: =B14 -> 67.43746227 | G23: =B13 -> 57.33099797 | H23: =B14 -> 67.43746227 | Q23: =accelaration*synim -> -1.23054264 | R23: =accelaration*hmiton -> 3.806016922 | AA23: 0 | AB23: =ABS(r_)*COS(AA24)+rx -> 69.11925398 | AC23: =ABS(r_)*SIN(AA24)+ry -> 14.5193938
D24: =D23+D21 -> 60.4688817 | E24: 57.73211912 | G24: =G23+G21 -> 56.98996251 | H24: 67.32720037 | K24: Else | Q24: =G21 -> -0.3410354553 | R24: =H21 -> -0.1102619032 | AA24: =AA23+2*PI()/50 -> 0.1256637061 | AB24: 62.28860625 | AC24: 50.32690317
D25: =-1/20*E21+18/20*D21+D23 -> 60.64036048 | E25: =1/20*D21+18/20*E21+E23 -> 58.85954762 | G25: =-1/20*H21+18/20*G21+G23 -> 57.02957915 | H25: =1/20*G21+18/20*H21+H23 -> 67.32117479 | K25: antiakt = 0 | Q25: =SUM(Q23:Q24) -> -1.571578095 | R25: =SUM(R23:R24) -> 3.695755019 | AA25: =AA24+2*PI()/50 -> 0.2513274123 | AB25: 51.02394928 | AC25: 84.99595247
D26: =1/20*E21+18/20*D21+D23 -> 59.66982617 | E26: =-1/20*D21+18/20*E21+E23 -> 58.54575925 | G26: =1/20*H21+18/20*G21+G23 -> 57.01855296 | H26: =-1/20*G21+18/20*H21+H23 -> 67.35527833 | K26: End If | Q26: total | AA26: 0.3769911184 | AB26: 35.50293344 | AC26: 117.9797901
D27: =D24 -> 60.4688817 | E27: 57.73211912 | G27: =G24 -> 56.98996251 | H27: 67.32720037 | K27: diastimata(EPanaLAMvano) = S11aA - diastimata(EPanaLAMvano - 1) | Q27: =xcurrent -> 57.33099797 | R27: =ycurrent -> 67.43746227 | AA27: 0.5026548246 | AB27: 15.97033443 | AC27: 148.7582412
K28: KENTROMOLOS = taxstigmis ^ 2 * antiakt | Q28: =Q27+Q25 -> 55.75941987 | R28: 71.13321729 | AA28: 0.6283185307 | AB28: -7.265807006 | AC28: 176.8459112
K29: kentrx = -KENTROMOLOS * hmiton / 2: kentry = KENTROMOLOS * synim / 2 | Q29: =-1/20*R25+18/20*Q25+Q27 -> 55.73178993 | R29: =1/20*Q25+18/20*R25+R27 -> 70.68506289 | AA29: 0.7539822369 | AB29: -33.83904303 | AC29: 201.7998408
Q30: =1/20*R25+18/20*Q25+Q27 -> 56.10136543 | R30: =-1/20*Q25+18/20*R25+R27 -> 70.84222069 | AA30: 0.879645943 | AB30: -63.33029785 | AC30: 223.2264916
Q31: =Q28 -> 55.75941987 | R31: 71.13321729 | AA31: 1.005309649 | AB31: -95.27447674 | AC31: 240.7879526
AA32: 1.130973355 | AB32: -129.1678009 | AC32: 254.207269
AA33: 1.256637061 | AB33: -164.4757524 | AC33: 263.2728101
AA34: 1.382300768 | AB34: -200.6415038 | AC34: 267.841607
AA35: 1.507964474 | AB35: -237.0946995 | AC35: 267.841607
AA36: 1.63362818 | AB36: -273.2604508 | AC36: 263.2728101
AA37: 1.759291886 | AB37: -308.5684024 | AC37: 254.207269
AA38: 1.884955592 | AB38: -342.4617265 | AC38: 240.7879526
AA39: 2.010619298 | AB39: -374.4059054 | AC39: 223.2264916
AA40: 2.136283004 | AB40: -403.8971602 | AC40: 201.7998408
AA41: 2.261946711 | AB41: -430.4703963 | AC41: 176.8459112
AA42: 2.387610417 | AB42: -453.7065377 | AC42: 148.7582412
AA43: 2.513274123 | AB43: -473.2391367 | AC43: 117.9797901
AA44: 2.638937829 | AB44: -488.7601526 | AC44: 84.99595247
AA45: 2.764601535 | AB45: -500.0248095 | AC45: 50.32690317
AA46: 2.890265241 | AB46: -506.8554573 | AC46: 14.5193938
AA47: 3.015928947 | AB47: -509.1443724 | AC47: -21.86186984
AA48: 3.141592654 | AB48: -506.8554573 | AC48: -58.24313347
AA49: 3.26725636 | AB49: -500.0248095 | AC49: -94.05064285
AA50: 3.392920066 | AB50: -488.7601526 | AC50: -128.7196921
AA51: 3.518583772 | AB51: -473.2391367 | AC51: -161.7035298
AA52: 3.644247478 | AB52: -453.7065377 | AC52: -192.4819809
AA53: 3.769911184 | AB53: -430.4703963 | AC53: -220.5696509
AA54: 3.89557489 | AB54: -403.8971602 | AC54: -245.5235805
AA55: 4.021238597 | AB55: =ABS(r_)*COS(AA56)+rx -> -374.4059054 | AC55: =ABS(r_)*SIN(AA56)+ry -> -266.9502313
AA56: 4.146902303 | AB56: -342.4617265 | AC56: -284.5116923
AA57: 4.272566009 | AB57: -308.5684024 | AC57: -297.9310086
AA58: 4.398229715 | AB58: -273.2604508 | AC58: -306.9965497
AA59: 4.523893421 | AB59: -237.0946995 | AC59: -311.5653466
AA60: 4.649557127 | AB60: -200.6415038 | AC60: -311.5653466
AA61: 4.775220833 | AB61: -164.4757524 | AC61: -306.9965497
AA62: 4.90088454 | AB62: -129.1678009 | AC62: -297.9310086
AA63: 5.026548246 | AB63: -95.27447674 | AC63: -284.5116923
AA64: 5.152211952 | AB64: -63.33029785 | AC64: -266.9502313
AA65: 5.277875658 | AB65: -33.83904303 | AC65: -245.5235805
AA66: 5.403539364 | AB66: -7.265807006 | AC66: -220.5696509
AA67: 5.52920307 | AB67: 15.97033443 | AC67: -192.4819809
AA68: 5.654866776 | AB68: 35.50293344 | AC68: -161.7035298
AA69: 5.780530483 | AB69: 51.02394928 | AC69: -128.7196921
AA70: 5.906194189 | AB70: 62.28860625 | AC70: -94.05064285
AA71: 6.031857895 | AB71: 69.11925398 | AC71: -58.24313347
AA72: 6.157521601 | AB72: 71.40816907 | AC72: -21.86186984
AA73: 6.283185307 | AB73: 71.40816907 | AC73: -21.86186984
A83: x | B83: y
A84: 0 | B84: =Maxy*SIN(kapa*A84) -> 0
A85: =A84+0.5 -> 0.5 | B85: 2.094241988
A86: =A85+0.5 -> 1 | B86: 4.187565373
A87: 1.5 | B87: 6.279051953
A88: 2 | B88: 8.367784333
A89: 2.5 | B89: 10.45284633
A90: 3 | B90: 12.53332336
A91: 3.5 | B91: 14.60830286
A92: 4 | B92: 16.67687467
A93: 4.5 | B93: 18.73813146
A94: 5 | B94: 20.79116908
A95: 5.5 | B95: 22.83508701
A96: 6 | B96: 24.86898872
A97: 6.5 | B97: 26.89198206
A98: 7 | B98: 28.90317969
A99: 7.5 | B99: 30.90169944
A100: 8 | B100: 32.88666467
A101: 8.5 | B101: 34.85720473
A102: 9 | B102: 36.81245527
A103: 9.5 | B103: 38.75155865
A104: 10 | B104: 40.67366431
A105: 10.5 | B105: 42.57792916
A106: 11 | B106: 44.46351792
A107: 11.5 | B107: 46.32960351
A108: 12 | B108: 48.17536741
A109: 12.5 | B109: 50
A110: 13 | B110: 51.80270094
A111: 13.5 | B111: 53.5826795
A112: 14 | B112: 55.33915492
A113: 14.5 | B113: 57.07135677
A114: 15 | B114: 58.77852523
A115: 15.5 | B115: 60.45991149
A116: 16 | B116: 62.11477803
A117: 16.5 | B117: 63.74239897
A118: 17 | B118: 65.3420604
A119: 17.5 | B119: 66.91306064
A120: 18 | B120: 68.45471059
A121: 18.5 | B121: 69.96633405
A122: 19 | B122: 71.44726796
A123: 19.5 | B123: 72.89686274
A124: 20 | B124: 74.31448255
A125: 20.5 | B125: 75.69950557
A126: 21 | B126: 77.05132428
A127: 21.5 | B127: 78.36934573
A128: 22 | B128: 79.6529918
A129: 22.5 | B129: 80.90169944
A130: 23 | B130: 82.11492091
A131: 23.5 | B131: 83.29212407
A132: 24 | B132: 84.43279255
A133: 24.5 | B133: 85.53642602
A134: 25 | B134: 86.60254038
A135: 25.5 | B135: 87.630668
A136: 26 | B136: 88.62035792
A137: 26.5 | B137: 89.57117602
A138: 27 | B138: 90.48270525
A139: 27.5 | B139: 91.35454576
A140: 28 | B140: 92.18631516
A141: 28.5 | B141: 92.97764859
A142: 29 | B142: 93.72819895
A143: 29.5 | B143: 94.43763702
A144: 30 | B144: 95.10565163
A145: 30.5 | B145: 95.73194975
A146: 31 | B146: 96.31625668
A147: 31.5 | B147: 96.85831611
A148: 32 | B148: =Maxy*SIN(kapa*A148) -> 97.35789029
A149: 32.5 | B149: 97.81476007
A150: =A149+0.5 -> 33 | B150: 98.22872507
A151: 33.5 | B151: 98.59960371
A152: 34 | B152: 98.9272333
A153: 34.5 | B153: 99.21147013
A154: 35 | B154: 99.45218954
A155: 35.5 | B155: 99.64928592
A156: 36 | B156: 99.80267284
A157: 36.5 | B157: 99.91228301
A158: 37 | B158: 99.97806835
A159: 37.5 | B159: 100
A160: 38 | B160: 99.97806835
A161: 38.5 | B161: 99.91228301
A162: =A161+0.5 -> 39 | B162: 99.80267284
A163: 39.5 | B163: 99.64928592
A164: 40 | B164: 99.45218954
A165: 40.5 | B165: 99.21147013
A166: 41 | B166: 98.9272333
A167: 41.5 | B167: 98.59960371
A168: 42 | B168: 98.22872507
A169: 42.5 | B169: 97.81476007
A170: 43 | B170: 97.35789029
A171: 43.5 | B171: 96.85831611
A172: 44 | B172: 96.31625668
A173: 44.5 | B173: 95.73194975
A174: 45 | B174: 95.10565163
A175: 45.5 | B175: 94.43763702
A176: 46 | B176: 93.72819895
A177: 46.5 | B177: 92.97764859
A178: 47 | B178: 92.18631516
A179: 47.5 | B179: 91.35454576
A180: 48 | B180: 90.48270525
A181: 48.5 | B181: 89.57117602
A182: 49 | B182: 88.62035792
A183: 49.5 | B183: 87.630668
A184: 50 | B184: 86.60254038
A185: 50.5 | B185: 85.53642602
A186: 51 | B186: 84.43279255
A187: 51.5 | B187: 83.29212407
A188: 52 | B188: 82.11492091
A189: 52.5 | B189: 80.90169944
A190: 53 | B190: 79.6529918
A191: 53.5 | B191: 78.36934573
A192: 54 | B192: 77.05132428
A193: 54.5 | B193: 75.69950557
A194: 55 | B194: 74.31448255
A195: 55.5 | B195: 72.89686274
A196: 56 | B196: 71.44726796
A197: 56.5 | B197: 69.96633405
A198: 57 | B198: 68.45471059
A199: 57.5 | B199: 66.91306064
A200: 58 | B200: 65.3420604
A201: 58.5 | B201: 63.74239897
A202: 59 | B202: 62.11477803
A203: 59.5 | B203: 60.45991149
A204: 60 | B204: 58.77852523
A205: 60.5 | B205: 57.07135677
A206: 61 | B206: 55.33915492
A207: 61.5 | B207: 53.5826795
A208: 62 | B208: 51.80270094
A209: 62.5 | B209: 50
A210: 63 | B210: 48.17536741
A211: 63.5 | B211: 46.32960351
... 273 more rows

Sheet time evolution

Sheet Landen transform
J1: E(k) | K1: =eplires -> 1.064252166 | L1: s/sqrt(1+b^2K^2) | M1: =scurrent/polepsilon -> 38.34201926 | N1: x | O1: =xcurrent -> 57.33099797 | U1: x | V1: 1 | AT1: 30 | AY1: A | AZ1: 1 | BA1: =1/2*(AZ1+AZ2) -> 0.6161034982 | BB1: 0.548991055 | BC1: 0.5469322626 | BD1: 0.5469303251 | BE1: 0.5469303251 | BF1: 0.5469303251 | BH1: K(sin(arixikigon1/2) | BI1: =1/(2*BF1)*PI() -> 2.872022733 | BP1: 42
A2: u | B2: 1.620025899 | K2: ΑΡΙΘΜΌΣ ΠΛΉΡΩΝ Ε | L2: Int(L1/E) | M2: =INT(M1/eplires) -> 36 | N2: =M2*eplires -> 38.31307796 | U2: =xcurrent -> 57.33099797 | V2: =U2-U4 -> 0.7823302018 | W2: =DEGREES(V2) -> 44.82421875 | AD2: DELTAX | AE2: =PI()/8 -> 0.3926990817 | AS2: φ αρχική | AT2: =PI()/4 -> 0.7853981634 | AY2: B | AZ2: =COS(arxikigon1) -> 0.2322069965 | BA2: =SQRT(AZ2*AZ1) -> 0.4818786118 | BB2: 0.5448734701 | BC2: 0.5469283876 | BD2: 0.5469303251 | BE2: 0.5469303251 | BF2: 0.5469303251 | BH2: E(arxikigon1/2) | BI2: =(1-0.5*BH5)*BI1 -> 1.064252166 | BO2: φ1 | BP2: =IF(SARX>SDOKIMI1,AT2+DELTAX,AT2-DELTAX) -> 1.178097245 | BR2: DELTAX2 | BS2: =DELTAX/2 -> 0.1963495408 | CD2: φ2 | CE2: =IF(SARX>SDOKIMI2,BP2+DELTAX2,BP2-DELTAX2) -> 0.9817477042 | CG2: DELTAX3 | CH2: =DELTAX2/2 -> 0.09817477042 | CR2: φ3 | CS2: =IF(SARX>SDOKIMI3,CE2+DELTAX3,CE2-DELTAX3) -> 0.8835729338 | CU2: DELTAX4 | CV2: =DELTAX3/2 -> 0.04908738521 | DF2: φ4 | DG2: =IF(SARX>SDOKIMI3,CS2+DELTAX4,CS2-DELTAX4) -> 0.8344855486 | DI2: DELTAX5 | DJ2: =DELTAX4/2 -> 0.02454369261 | DT2: φ5 | DU2: =IF(SARX>SDOKIMI3,DG2+DELTAX5,DG2-DELTAX5) -> 0.809941856 | DW2: DELTAX6 | DX2: =DELTAX5/2 -> 0.0122718463 | EH2: φ6 | EI2: =IF(SARX>SDOKIMI3,DU2+DELTAX6,DU2-DELTAX6) -> 0.7976700097 | EK2: DELTAX7 | EL2: =DELTAX6/2 -> 0.006135923152 | EV2: φ7 | EW2: =IF(SARX>SDOKIMI3,EI2+DELTAX7,EI2-DELTAX7) -> 0.7915340865 | EY2: DELTAX8 | EZ2: =DELTAX7/2 -> 0.003067961576 | FJ2: φ8 | FK2: =IF(SARX>SDOKIMI3,EW2+DELTAX8,EW2-DELTAX8) -> 0.788466125 | FM2: DELTAX9 | FN2: =DELTAX8/2 -> 0.001533980788 | FX2: φ9 | FY2: =IF(SARX>SDOKIMI3,FK2+DELTAX9,FK2-DELTAX9) -> 0.7869321442 | GA2: DELTAX10 | GB2: =DELTAX7/2 -> 0.003067961576 | GL2: φ10 | GM2: =IF(SARX>SDOKIMI3,FY2+DELTAX9,FY2-DELTAX9) -> 0.7853981634 | GO2: DELTAX10 | GP2: =DELTAX7/2 -> 0.003067961576 | GZ2: φ11 | HA2: =IF(SARX>SDOKIMI3,GM2+DELTAX10,GM2-DELTAX10) -> 0.7823302018 | HC2: DELTAX10 | HD2: =DELTAX7/2 -> 0.003067961576 | HH2: x | HI2: =ARPLIRON*PI()/2+HA2 -> 57.33099797
A3: M | B3: 0.4226182617 | J3: k= | K3: =kapaelliptic -> 0.9726663923 | M3: =M1-N2 -> 0.02894129805 | O3: =M2*PI()/2+PI()/4 -> 57.33406593 | P3: 64 | Q3: =RADIANS(P3) -> 1.117010721 | U3: =INT(U2/PI()*2) -> 36 | V3: =INT(V2/eplires) -> 0 | AT3: =INT(AT2/eplires) -> 0 | AY3: C | AZ3: =SIN(arxikigon1) -> 0.9726663923 | BA3: =1/2*(AZ1-AZ2) -> 0.3838965018 | BB3: 0.06711244324 | BC3: 0.002058792443 | BD3: 1.937461744e-06 | BE3: 1.715849685e-12 | BF3: 0 | BP3: =INT(BP2/eplires) -> 1 | CE3: =INT(CE2/eplires) -> 0 | CS3: =INT(CS2/eplires) -> 0 | DG3: =INT(DG2/eplires) -> 0 | DU3: =INT(DU2/eplires) -> 0 | EI3: =INT(EI2/eplires) -> 0 | EW3: =INT(EW2/eplires) -> 0 | FK3: =INT(FK2/eplires) -> 0 | FY3: =INT(FY2/eplires) -> 0 | GM3: =INT(GM2/eplires) -> 0 | HA3: =INT(HA2/eplires) -> 0
A4: m' | B4: 0.5773817383 | J4: α | K4: =ASIN(K3) -> 1.336450239 | M4: =M2*PI()/2+PI()/4 -> 57.33406593 | U4: =U3*PI()/2 -> 56.54866776 | AY4: C² | AZ4: =AZ3^2 -> 0.9460799108 | BA4: =BA3^2 -> 0.1473765241 | BB4: 0.004504080037 | BC4: 4.238626325e-06 | BD4: 3.753758008e-12 | BE4: 2.94414014e-24 | BF4: 0
B5: A | C5: B | D5: c | E5: Φ | H5: =MAX(G6:G23) -> 22.70130561 | J5: α0 | K5: =DEGREES(K4) -> 76.57295824 | R5: =ATAN(W25) -> 0.7715428766 | S5: =K4 -> 1.336450239 | AP5: =ATAN(AU25) -> 0.7715428766 | AQ5: =1*AP5 -> 0.7715428766 | AY5: 2^N*cN | AZ5: =2^AZ6*AZ4 -> 0.9460799108 | BA5: =2^BA6*BA4 -> 0.2947530481 | BB5: 0.01801632015 | BC5: 3.39090106e-05 | BD5: 6.006012813e-11 | BE5: 9.421248448e-23 | BF5: 0 | BG5: sum | BH5: =SUM(AZ5:BF5) -> 1.258883188 | BL5: =ATAN(BQ25) -> 0.7715428766 | BM5: =2*BL5 -> 1.543085753 | BW5: =SUM(BO5:BU5) -> 0 | CA5: =ATAN(CF25) -> 0.7715428766 | CB5: =2*CA5 -> 1.543085753 | CK5: =SUM(CC5:CI5) -> 0 | CO5: =ATAN(CT25) -> 0.7715428766 | CP5: =2*CO5 -> 1.543085753 | CY5: =SUM(CQ5:CW5) -> 0 | DC5: =ATAN(DH25) -> 0.7715428766 | DD5: =2*DC5 -> 1.543085753 | DM5: =SUM(DE5:DK5) -> 0 | DQ5: =ATAN(DV25) -> 0.7715428766 | DR5: =2*DQ5 -> 1.543085753 | EA5: =SUM(DS5:DY5) -> 0 | EE5: =ATAN(EJ25) -> 0.7715428766 | EF5: =2*EE5 -> 1.543085753 | EO5: =SUM(EG5:EM5) -> 0 | ES5: =ATAN(EX25) -> 0.7715428766 | ET5: =2*ES5 -> 1.543085753 | FC5: =SUM(EU5:FA5) -> 0 | FG5: =ATAN(FL25) -> 0.7715428766 | FH5: =2*FG5 -> 1.543085753 | FQ5: =SUM(FI5:FO5) -> 0 | FU5: =ATAN(FZ25) -> 0.7715428766 | FV5: =2*FU5 -> 1.543085753 | GE5: =SUM(FW5:GC5) -> 0 | GI5: =ATAN(GN25) -> 0.7715428766 | GJ5: =2*GI5 -> 1.543085753 | GS5: =SUM(GK5:GQ5) -> 0 | GW5: =ATAN(HB25) -> 0.7715428766 | GX5: =2*GW5 -> 1.543085753
A6: 0 | B6: =1 -> 1 | C6: =SQRT(MM) -> 0.7598563932 | D6: =SQRT(M) -> 0.6500909642 | E6: =2^A6*B6*u -> 1.620025899 | F6: =IF(ABS(D6)<0.0000000000000001,1,0) -> 0 | H6: =IF(E6<$H$5,1/2*(H7+ASIN(D7/B7*SIN(H7))),$H$5) -> 1.438671995 | I6: =SIN(H6) -> 0.9912842706 | J6: scn | AY6: n | AZ6: 0 | BA6: =AZ6+1 -> 1 | BB6: =BA6+1 -> 2 | BC6: 3 | BD6: 4 | BE6: 5 | BF6: 6
A7: =A6+1 -> 1 | B7: =1/2*(B6+C6) -> 0.8799281966 | C7: =SQRT(B6*C6) -> 0.8716974207 | D7: =1/2*(B6-C6) -> 0.1200718034 | E7: 2.851012936 | F7: 0 | G7: =IF(AND(F7=0,F8=1),E7,"") ->  | H7: =IF(E7<$H$5,1/2*(H8+ASIN(D8/B8*SIN(H8))),$H$5) -> 2.836320094 | I7: =SQRT(1-I6^2) -> 0.1317402554 | R7: =DEGREES(R5) -> 44.20615054 | AP7: =DEGREES(AP5) -> 44.20615054 | AV7: xx | AW7: 2 | AZ7: x = phi | BB7: intt1 | BC7: =INT(AW7/PI()) -> 0 | BE7: ακέραιο μέρος δια πι | BL7: =DEGREES(BL5) -> 44.20615054 | CA7: =DEGREES(CA5) -> 44.20615054 | CO7: =DEGREES(CO5) -> 44.20615054 | DC7: =DEGREES(DC5) -> 44.20615054 | DQ7: =DEGREES(DQ5) -> 44.20615054 | EE7: =DEGREES(EE5) -> 44.20615054 | ES7: =DEGREES(ES5) -> 44.20615054 | FG7: =DEGREES(FG5) -> 44.20615054 | FU7: =DEGREES(FU5) -> 44.20615054 | GI7: =DEGREES(GI5) -> 44.20615054 | GW7: =DEGREES(GW5) -> 44.20615054
A8: =A7+1 -> 2 | B8: =1/2*(B7+C7) -> 0.8758128086 | C8: =SQRT(B7*C7) -> 0.8758031396 | D8: =1/2*(B7-C7) -> 0.004115387966 | E8: 5.675357731 | F8: 0 | G8: =IF(AND(F8=0,F9=1),E8,"") ->  | H8: =IF(E8<$H$5,1/2*(H9+ASIN(D9/B9*SIN(H9))),$H$5) -> 5.675323815 | Q8: arxikigon | R8: =S5 -> 1.336450239 | S8: =arxikigon -> 1.336450239 | U8: =DEGREES(S8) -> 76.57295824 | Y8: .0 | Z8: >0 | AA8: K(k) | AO8: arxikigon1 | AP8: =arxikigon -> 1.336450239 | AQ8: =arxikigon -> 1.336450239 | AS8: =DEGREES(AQ8) -> 76.57295824 | AW8: .0 | AX8: >0 | AY8: K(k) | AZ8: Pi = 4 * Atn(1) | BB8: intt2 | BC8: =INT(AW7*2/PI()) -> 1 | BK8: arxikigon2 | BL8: =arxikigon -> 1.336450239 | BM8: =arxikigon -> 1.336450239 | BO8: =DEGREES(BM8) -> 76.57295824 | BS8: .0 | BT8: >0 | BU8: K(k) | BZ8: arxikigon2 | CA8: =arxikigon -> 1.336450239 | CB8: =arxikigon -> 1.336450239 | CD8: =DEGREES(CB8) -> 76.57295824 | CH8: .0 | CI8: >0 | CJ8: K(k) | CN8: arxikigon2 | CO8: =arxikigon -> 1.336450239 | CP8: =arxikigon -> 1.336450239 | CR8: =DEGREES(CP8) -> 76.57295824 | CV8: .0 | CW8: >0 | CX8: K(k) | DB8: arxikigon2 | DC8: =arxikigon -> 1.336450239 | DD8: =arxikigon -> 1.336450239 | DF8: =DEGREES(DD8) -> 76.57295824 | DJ8: .0 | DK8: >0 | DL8: K(k) | DP8: arxikigon2 | DQ8: =arxikigon -> 1.336450239 | DR8: =arxikigon -> 1.336450239 | DT8: =DEGREES(DR8) -> 76.57295824 | DX8: .0 | DY8: >0 | DZ8: K(k) | ED8: arxikigon2 | EE8: =arxikigon -> 1.336450239 | EF8: =arxikigon -> 1.336450239 | EH8: =DEGREES(EF8) -> 76.57295824 | EL8: .0 | EM8: >0 | EN8: K(k) | ER8: arxikigon2 | ES8: =arxikigon -> 1.336450239 | ET8: =arxikigon -> 1.336450239 | EV8: =DEGREES(ET8) -> 76.57295824 | EZ8: .0 | FA8: >0 | FB8: K(k) | FF8: arxikigon2 | FG8: =arxikigon -> 1.336450239 | FH8: =arxikigon -> 1.336450239 | FJ8: =DEGREES(FH8) -> 76.57295824 | FN8: .0 | FO8: >0 | FP8: K(k) | FT8: arxikigon2 | FU8: =arxikigon -> 1.336450239 | FV8: =arxikigon -> 1.336450239 | FX8: =DEGREES(FV8) -> 76.57295824 | GB8: .0 | GC8: >0 | GD8: K(k) | GH8: arxikigon2 | GI8: =arxikigon -> 1.336450239 | GJ8: =arxikigon -> 1.336450239 | GL8: =DEGREES(GJ8) -> 76.57295824 | GP8: .0 | GQ8: >0 | GR8: K(k) | GV8: arxikigon2 | GW8: =arxikigon -> 1.336450239 | GX8: =arxikigon -> 1.336450239 | GZ8: =DEGREES(GX8) -> 76.57295824 | HD8: .0 | HE8: >0 | HF8: K(k)
A9: 3 | B9: 0.8758079741 | C9: 0.8758079741 | D9: 4.83451242e-06 | E9: 11.35065281 | F9: 0 | H9: 11.35065281 | S9: =DEGREES(V2) -> 44.82421875 | Y9: =COUNTIF(Y11:Y19,Z8) -> 1 | AA9: =0.5*PI()/Y10 -> 2.872022733 | AQ9: =DEGREES(AT2) -> 45 | AW9: =COUNTIF(AW11:AW19,AX8) -> 1 | AY9: =0.5*PI()/AW10 -> 2.872022733 | AZ9: If x = 0 Then | BB9: aker1 | BC9: =intt1*PI() -> 0 | BM9: =DEGREES(BP2) -> 67.5 | BS9: =COUNTIF(BS11:BS19,BT8) -> 1 | BU9: =0.5*PI()/BS10 -> 2.872022733 | CB9: =DEGREES(CE2) -> 56.25 | CH9: =COUNTIF(CH11:CH19,CI8) -> 1 | CJ9: =0.5*PI()/CH10 -> 2.872022733 | CP9: =DEGREES(CS2) -> 50.625 | CV9: =COUNTIF(CV11:CV19,CW8) -> 1 | CX9: =0.5*PI()/CV10 -> 2.872022733 | DD9: =DEGREES(DG2) -> 47.8125 | DJ9: =COUNTIF(DJ11:DJ19,DK8) -> 1 | DL9: =0.5*PI()/DJ10 -> 2.872022733 | DR9: =DEGREES(DU2) -> 46.40625 | DX9: =COUNTIF(DX11:DX19,DY8) -> 1 | DZ9: =0.5*PI()/DX10 -> 2.872022733 | EF9: =DEGREES(EI2) -> 45.703125 | EL9: =COUNTIF(EL11:EL19,EM8) -> 1 | EN9: =0.5*PI()/EL10 -> 2.872022733 | ET9: =DEGREES(EW2) -> 45.3515625 | EZ9: =COUNTIF(EZ11:EZ19,FA8) -> 1 | FB9: =0.5*PI()/EZ10 -> 2.872022733 | FH9: =DEGREES(FK2) -> 45.17578125 | FN9: =COUNTIF(FN11:FN19,FO8) -> 1 | FP9: =0.5*PI()/FN10 -> 2.872022733 | FV9: =DEGREES(FY2) -> 45.08789062 | GB9: =COUNTIF(GB11:GB19,GC8) -> 1 | GD9: =0.5*PI()/GB10 -> 2.872022733 | GJ9: =DEGREES(GM2) -> 45 | GP9: =COUNTIF(GP11:GP19,GQ8) -> 1 | GR9: =0.5*PI()/GP10 -> 2.872022733 | GX9: =DEGREES(HA2) -> 44.82421875 | HD9: =COUNTIF(HD11:HD19,HE8) -> 1 | HF9: =0.5*PI()/HD10 -> 2.872022733
A10: 4 | B10: 0.8758079741 | C10: 0.8758079741 | D10: 6.671663222e-12 | E10: 22.70130561 | F10: =IF(ABS(D10)<0.0000000000000001,1,0) -> 0 | G10: 22.70130561 | H10: 22.70130561 | M10: K | N10: Z | Q10: F(φ,k) | S10: φ | T10: atan(an/bn*tan(φn)) | V10: a0 | W10: b | X10: c | Y10: =SUM(Y11:Y19)/Y9 -> 0.5469303251 | AK10: K | AL10: Z | AO10: F(φ,k) | AQ10: φ | AR10: atan(an/bn*tan(φn)) | AT10: a0 | AU10: b | AV10: c | AW10: =SUM(AW11:AW19)/AW9 -> 0.5469303251 | AZ10: elle2 = 0 | BB10: aker2 | BC10: =intt2_*PI()/2 -> 1.570796327 | BD10: =IN2*PI() -> 0 | BG10: K | BH10: Z | BK10: F(φ,k) | BM10: φ | BN10: atan(an/bn*tan(φn)) | BP10: a0 | BQ10: b | BR10: c | BS10: =SUM(BS11:BS19)/BS9 -> 0.5469303251 | BW10: Z | BZ10: F(φ,k) | CB10: φ | CC10: atan(an/bn*tan(φn)) | CE10: a0 | CF10: b | CG10: c | CH10: =SUM(CH11:CH19)/CH9 -> 0.5469303251 | CK10: Z | CN10: F(φ,k) | CP10: φ | CQ10: atan(an/bn*tan(φn)) | CS10: a0 | CT10: b | CU10: c | CV10: =SUM(CV11:CV19)/CV9 -> 0.5469303251 | CY10: Z | DB10: F(φ,k) | DD10: φ | DE10: atan(an/bn*tan(φn)) | DG10: a0 | DH10: b | DI10: c | DJ10: =SUM(DJ11:DJ19)/DJ9 -> 0.5469303251 | DM10: Z | DP10: F(φ,k) | DR10: φ | DS10: atan(an/bn*tan(φn)) | DU10: a0 | DV10: b | DW10: c | DX10: =SUM(DX11:DX19)/DX9 -> 0.5469303251 | EA10: Z | ED10: F(φ,k) | EF10: φ | EG10: atan(an/bn*tan(φn)) | EI10: a0 | EJ10: b | EK10: c | EL10: =SUM(EL11:EL19)/EL9 -> 0.5469303251 | EO10: Z | ER10: F(φ,k) | ET10: φ | EU10: atan(an/bn*tan(φn)) | EW10: a0 | EX10: b | EY10: c | EZ10: =SUM(EZ11:EZ19)/EZ9 -> 0.5469303251 | FC10: Z | FF10: F(φ,k) | FH10: φ | FI10: atan(an/bn*tan(φn)) | FK10: a0 | FL10: b | FM10: c | FN10: =SUM(FN11:FN19)/FN9 -> 0.5469303251 | FQ10: Z | FT10: F(φ,k) | FV10: φ | FW10: atan(an/bn*tan(φn)) | FY10: a0 | FZ10: b | GA10: c | GB10: =SUM(GB11:GB19)/GB9 -> 0.5469303251 | GE10: Z | GH10: F(φ,k) | GJ10: φ | GK10: atan(an/bn*tan(φn)) | GM10: a0 | GN10: b | GO10: c | GP10: =SUM(GP11:GP19)/GP9 -> 0.5469303251 | GS10: Z | GV10: F(φ,k) | GX10: φ | GY10: atan(an/bn*tan(φn)) | HA10: a0 | HB10: b | HC10: c | HD10: =SUM(HD11:HD19)/HD9 -> 0.5469303251
A11: 5 | B11: 0.8758079741 | C11: 0.8758079741 | D11: 0 | E11: 45.40261122 | F11: =IF(ABS(D11)<0.0000000000000001,1,0) -> 1 | H11: 22.70130561 | M11: =PI()/(2*V11) -> 1.570796327 | N11: =X11*SIN(U11) -> 0.6856656888 | O11: =IF(X11<>0,1/2*X11^2,0) -> 0.4730399554 | P11: 0 | Q11: =S11/(V11) -> 0.7823302018 | R11: =SIN(S11) -> 0.7049340804 | S11: =RADIANS(S9) -> 0.7823302018 | U11: =RADIANS(S9) -> 0.7823302018 | V11: 1 | W11: =COS(arxikigon) -> 0.2322069965 | X11: =SIN(arxikigon) -> 0.9726663923 | Y11: =IF(V11<>W11,0,IF(V11-V12<>0,V11,0)) -> 0 | AK11: =PI()/(2*AT11) -> 1.570796327 | AL11: =AV11*SIN(AS11) -> 0.6877790019 | AM11: =1/2*AV11^2 -> 0.4730399554 | AN11: 0 | AO11: =AQ11/(AT11) -> 0.7853981634 | AQ11: =RADIANS(AQ9) -> 0.7853981634 | AS11: =RADIANS(AQ9) -> 0.7853981634 | AT11: 1 | AU11: =COS(arxikigon) -> 0.2322069965 | AV11: =SIN(arxikigon) -> 0.9726663923 | AW11: =IF(AT11<>AU11,0,IF(AT11-AT12<>0,AT11,0)) -> 0 | AZ11: Exit Function | BB11: x1a | BC11: =xx-aker1 -> 2 | BG11: =PI()/(2*BP11) -> 1.570796327 | BH11: =BR11*SIN(BO11) -> 0.8986265718 | BI11: =1/2*BR11^2 -> 0.4730399554 | BJ11: 0 | BK11: =BM11/(BP11) -> 1.178097245 | BM11: =RADIANS(BM9) -> 1.178097245 | BO11: =RADIANS(BM9) -> 1.178097245 | BP11: 1 | BQ11: =SQRT(1-SIN(arxikigon)^2) -> 0.2322069965 | BR11: =SIN(arxikigon) -> 0.9726663923 | BS11: =IF(BP11<>BQ11,0,IF(BP11-BP12<>0,BP11,0)) -> 0 | BW11: =CG11*SIN(CD11) -> 0.8087425481 | BX11: =1/2*CG11^2 -> 0.4730399554 | BY11: 0 | BZ11: =CB11/(CE11) -> 0.9817477042 | CB11: =RADIANS(CB9) -> 0.9817477042 | CD11: =RADIANS(CB9) -> 0.9817477042 | CE11: 1 | CF11: =SQRT(1-SIN(arxikigon)^2) -> 0.2322069965 | CG11: =SIN(arxikigon) -> 0.9726663923 | CH11: =IF(CE11<>CF11,0,IF(CE11-CE12<>0,CE11,0)) -> 0 | CK11: =CU11*SIN(CR11) -> 0.7518812889 | CL11: =1/2*CU11^2 -> 0.4730399554 | CM11: 0 | CN11: =CP11/(CS11) -> 0.8835729338 | CP11: =RADIANS(CP9) -> 0.8835729338 | CR11: =RADIANS(CP9) -> 0.8835729338 | CS11: 1 | CT11: =SQRT(1-SIN(arxikigon)^2) -> 0.2322069965 | CU11: =SIN(arxikigon) -> 0.9726663923 | CV11: =IF(CS11<>CT11,0,IF(CS11-CS12<>0,CS11,0)) -> 0 | CY11: =DI11*SIN(DF11) -> 0.720698258 | CZ11: =1/2*DI11^2 -> 0.4730399554 | DA11: 0 | DB11: =DD11/(DG11) -> 0.8344855486 | DD11: =RADIANS(DD9) -> 0.8344855486 | DF11: =RADIANS(DD9) -> 0.8344855486 | DG11: 1 | DH11: =SQRT(1-SIN(arxikigon)^2) -> 0.2322069965 | DI11: =SIN(arxikigon) -> 0.9726663923 | DJ11: =IF(DG11<>DH11,0,IF(DG11-DG12<>0,DG11,0)) -> 0 | DM11: =DW11*SIN(DT11) -> 0.7044507973 | DN11: =1/2*DW11^2 -> 0.4730399554 | DO11: 0 | DP11: =DR11/(DU11) -> 0.809941856 | DR11: =RADIANS(DR9) -> 0.809941856 | DT11: =RADIANS(DR9) -> 0.809941856 | DU11: 1 | DV11: =SQRT(1-SIN(arxikigon)^2) -> 0.2322069965 | DW11: =SIN(arxikigon) -> 0.9726663923 | DX11: =IF(DU11<>DV11,0,IF(DU11-DU12<>0,DU11,0)) -> 0 | EA11: =EK11*SIN(EH11) -> 0.6961673197 | EB11: =1/2*EK11^2 -> 0.4730399554 | EC11: 0 | ED11: =EF11/(EI11) -> 0.7976700097 | EF11: =RADIANS(EF9) -> 0.7976700097 | EH11: =RADIANS(EF9) -> 0.7976700097 | EI11: 1 | EJ11: =SQRT(1-SIN(arxikigon)^2) -> 0.2322069965 | EK11: =SIN(arxikigon) -> 0.9726663923 | EL11: =IF(EI11<>EJ11,0,IF(EI11-EI12<>0,EI11,0)) -> 0 | EO11: =EY11*SIN(EV11) -> 0.6919861872 | EP11: =1/2*EY11^2 -> 0.4730399554 | EQ11: 0 | ER11: =ET11/(EW11) -> 0.7915340865 | ET11: =RADIANS(ET9) -> 0.7915340865 | EV11: =RADIANS(ET9) -> 0.7915340865 | EW11: 1 | EX11: =SQRT(1-SIN(arxikigon)^2) -> 0.2322069965 | EY11: =SIN(arxikigon) -> 0.9726663923 | EZ11: =IF(EW11<>EX11,0,IF(EW11-EW12<>0,EW11,0)) -> 0 | FC11: =FM11*SIN(FJ11) -> 0.6898858413 | FD11: =1/2*FM11^2 -> 0.4730399554 | FE11: 0 | FF11: =FH11/(FK11) -> 0.788466125 | FH11: =RADIANS(FH9) -> 0.788466125 | FJ11: =RADIANS(FH9) -> 0.788466125 | FK11: 1 | FL11: =SQRT(1-SIN(arxikigon)^2) -> 0.2322069965 | FM11: =SIN(arxikigon) -> 0.9726663923 | FN11: =IF(FK11<>FL11,0,IF(FK11-FK12<>0,FK11,0)) -> 0 | FQ11: =GA11*SIN(FX11) -> 0.688833232 | FR11: =1/2*GA11^2 -> 0.4730399554 | FS11: 0 | FT11: =FV11/(FY11) -> 0.7869321442 | FV11: =RADIANS(FV9) -> 0.7869321442 | FX11: =RADIANS(FV9) -> 0.7869321442 | FY11: 1 | FZ11: =SQRT(1-SIN(arxikigon)^2) -> 0.2322069965 | GA11: =SIN(arxikigon) -> 0.9726663923 | GB11: =IF(FY11<>FZ11,0,IF(FY11-FY12<>0,FY11,0)) -> 0 | GE11: =GO11*SIN(GL11) -> 0.6877790019 | GF11: =1/2*GO11^2 -> 0.4730399554 | GG11: 0 | GH11: =GJ11/(GM11) -> 0.7853981634 | GJ11: =RADIANS(GJ9) -> 0.7853981634 | GL11: =RADIANS(GJ9) -> 0.7853981634 | GM11: 1 | GN11: =SQRT(1-SIN(arxikigon)^2) -> 0.2322069965 | GO11: =SIN(arxikigon) -> 0.9726663923 | GP11: =IF(GM11<>GN11,0,IF(GM11-GM12<>0,GM11,0)) -> 0 | GS11: =HC11*SIN(GZ11) -> 0.6856656888 | GT11: =1/2*HC11^2 -> 0.4730399554 | GU11: 0 | GV11: =GX11/(HA11) -> 0.7823302018 | GX11: =RADIANS(GX9) -> 0.7823302018 | GZ11: =RADIANS(GX9) -> 0.7823302018 | HA11: 1 | HB11: =SQRT(1-SIN(arxikigon)^2) -> 0.2322069965 | HC11: =SIN(arxikigon) -> 0.9726663923 | HD11: =IF(HA11<>HB11,0,IF(HA11-HA12<>0,HA11,0)) -> 0
A12: 6 | B12: 0.8758079741 | C12: 0.8758079741 | D12: 0 | E12: 90.80522245 | F12: 1 | H12: 22.70130561 | M12: 2.549565668 | N12: =X12*SIN(U12) -> 0.3249211905 | O12: =IF(X12<>0,O11+1/2*2^(P12)*X12^2,0) -> 0.6204164795 | P12: 1 | Q12: =S12/(V12*2^P12) -> 1.171158446 | R12: =SIN(U12) -> 0.8463770548 | S12: =IF(T12<0,S11+T12+(INT(S11/PI())+1)*PI(),S11+INT(S11/PI())*PI()+T12) -> 1.443109632 | T12: =ATAN(W12/V12*TAN(S11)) -> 0.6607794298 | U12: =U11+ATAN(W11/V11*(TAN(U11))) -> 1.009145489 | V12: =1/2*(V11+W11) -> 0.6161034982 | W12: =SQRT(V11*W11) -> 0.4818786118 | X12: =1/2*(V11-W11) -> 0.3838965018 | Y12: =IF(V12<>W12,0,IF(V12-V13<>0,V12,0)) -> 0 | AK12: 2.549565668 | AL12: =AV12*SIN(AS12) -> 0.3258209351 | AM12: =AM11+1/2*2^(AO12)*AV12^2 -> 0.6395454393 | AN12: 1 | AO12: =AQ12/(AT12*2^AN12) -> 1.176062961 | AQ12: =IF(AR12<0,AQ11+AR12+(INT(AQ11/PI())+1)*PI(),AQ11+INT(AQ11/PI())*PI()+AR12) -> 1.449153009 | AR12: =ATAN(AU12/AT12*TAN(AQ11)) -> 0.663754846 | AS12: =AS11+ATAN(AU11/AT11*(TAN(AS11))) -> 1.01356165 | AT12: =1/2*(AT11+AU11) -> 0.6161034982 | AU12: =SQRT(AT11*AU11) -> 0.4818786118 | AV12: =1/2*(AT11-AU11) -> 0.3838965018 | AW12: =IF(AT12<>AU12,0,IF(AT12-AT13<>0,AT12,0)) -> 0 | AZ12: End If | BB12: x2a= | BC12: =aker1+PI()-xx -> 1.141592654 | BG12: 2.549565668 | BH12: =BR12*SIN(BO12) -> 0.3812158836 | BI12: =BI11+1/2*2^(BK12)*BR12^2 -> 0.7360502481 | BJ12: 1 | BK12: =BM12/(BP12*2^BJ12) -> 1.835612527 | BM12: =IF(BN12<0,BM11+BN12+(INT(BM11/PI())+1)*PI(),BM11+INT(BM11/PI())*PI()+BN12) -> 2.261854598 | BN12: =ATAN(BQ12/BP12*TAN(BM11)) -> 1.083757353 | BO12: =BO11+ATAN(BQ11/BP11*(TAN(BO11))) -> 1.689040141 | BP12: =1/2*(BP11+BQ11) -> 0.6161034982 | BQ12: =SQRT(BP11*BQ11) -> 0.4818786118 | BR12: =1/2*(BP11-BQ11) -> 0.3838965018 | BS12: =IF(BP12<>BQ12,0,IF(BP12-BP13<>0,BP12,0)) -> 0 | BW12: =CG12*SIN(CD12) -> 0.3715229232 | BX12: =BX11+1/2*2^(BZ12)*CG12^2 -> 0.6811397176 | BY12: 1 | BZ12: =CB12/(CE12*2^BY12) -> 1.497768584 | CB12: =IF(CC12<0,CB11+CC12+(INT(CB11/PI())+1)*PI(),CB11+INT(CB11/PI())*PI()+CC12) -> 1.845560928 | CC12: =ATAN(CF12/CE12*TAN(CB11)) -> 0.8638132236 | CD12: =CD11+ATAN(CF11/CE11*(TAN(CD11))) -> 1.316213541 | CE12: =1/2*(CE11+CF11) -> 0.6161034982 | CF12: =SQRT(CE11*CF11) -> 0.4818786118 | CG12: =1/2*(CE11-CF11) -> 0.3838965018 | CH12: =IF(CE12<>CF12,0,IF(CE12-CE13<>0,CE12,0)) -> 0 | CK12: =CU12*SIN(CR12) -> 0.351851716 | CL12: =CL11+1/2*2^(CN12)*CU12^2 -> 0.6589305142 | CM12: 1 | CN12: =CP12/(CS12*2^CM12) -> 1.334946767 | CP12: =IF(CQ12<0,CP11+CQ12+(INT(CP11/PI())+1)*PI(),CP11+INT(CP11/PI())*PI()+CQ12) -> 1.644930746 | CQ12: =ATAN(CT12/CS12*TAN(CP11)) -> 0.7613578118 | CR12: =CR11+ATAN(CT11/CS11*(TAN(CR11))) -> 1.159310482 | CS12: =1/2*(CS11+CT11) -> 0.6161034982 | CT12: =SQRT(CS11*CT11) -> 0.4818786118 | CU12: =1/2*(CS11-CT11) -> 0.3838965018 | CV12: =IF(CS12<>CT12,0,IF(CS12-CS13<>0,CS12,0)) -> 0 | CY12: =DI12*SIN(DF12) -> 0.3395332807 | CZ12: =CZ11+1/2*2^(DB12)*DI12^2 -> 0.6489130304 | DA12: 1 | DB12: =DD12/(DG12*2^DA12) -> 1.2550279 | DD12: =IF(DE12<0,DD11+DE12+(INT(DD11/PI())+1)*PI(),DD11+INT(DD11/PI())*PI()+DE12) -> 1.54645416 | DE12: =ATAN(DH12/DG12*TAN(DD11)) -> 0.7119686109 | DF12: =DF11+ATAN(DH11/DG11*(TAN(DF11))) -> 1.085291822 | DG12: =1/2*(DG11+DH11) -> 0.6161034982 | DH12: =SQRT(DG11*DH11) -> 0.4818786118 | DI12: =1/2*(DG11-DH11) -> 0.3838965018 | DJ12: =IF(DG12<>DH12,0,IF(DG12-DG13<>0,DG12,0)) -> 0 | DM12: =DW12*SIN(DT12) -> 0.3328413362 | DN12: =DN11+1/2*2^(DP12)*DW12^2 -> 0.6441512833 | DO12: 1 | DP12: =DR12/(DU12*2^DO12) -> 1.21542854 | DR12: =IF(DS12<0,DR11+DS12+(INT(DR11/PI())+1)*PI(),DR11+INT(DR11/PI())*PI()+DS12) -> 1.49765955 | DS12: =ATAN(DV12/DU12*TAN(DR11)) -> 0.6877176942 | DT12: =DT11+ATAN(DV11/DU11*(TAN(DT11))) -> 1.049166091 | DU12: =1/2*(DU11+DV11) -> 0.6161034982 | DV12: =SQRT(DU11*DV11) -> 0.4818786118 | DW12: =1/2*(DU11-DV11) -> 0.3838965018 | DX12: =IF(DU12<>DV12,0,IF(DU12-DU13<>0,DU12,0)) -> 0 | EA12: =EK12*SIN(EH12) -> 0.3293710469 | EB12: =EB11+1/2*2^(ED12)*EK12^2 -> 0.6418292702 | EC12: 1 | ED12: =EF12/(EI12*2^EC12) -> 1.195716845 | EF12: =IF(EG12<0,EF11+EG12+(INT(EF11/PI())+1)*PI(),EF11+INT(EF11/PI())*PI()+EG12) -> 1.473370662 | EG12: =ATAN(EJ12/EI12*TAN(EF11)) -> 0.6757006522 | EH12: =EH11+ATAN(EJ11/EI11*(TAN(EH11))) -> 1.031301592 | EI12: =1/2*(EI11+EJ11) -> 0.6161034982 | EJ12: =SQRT(EI11*EJ11) -> 0.4818786118 | EK12: =1/2*(EI11-EJ11) -> 0.3838965018 | EL12: =IF(EI12<>EJ12,0,IF(EI12-EI13<>0,EI12,0)) -> 0 | EO12: =EY12*SIN(EV12) -> 0.3276058314 | EP12: =EP11+1/2*2^(ER12)*EY12^2 -> 0.6406826307 | EQ12: 1 | ER12: =ET12/(EW12*2^EQ12) -> 1.185882718 | ET12: =IF(EU12<0,ET11+EU12+(INT(ET11/PI())+1)*PI(),ET11+INT(ET11/PI())*PI()+EU12) -> 1.461252982 | EU12: =ATAN(EX12/EW12*TAN(ET11)) -> 0.6697188951 | EV12: =EV11+ATAN(EX11/EW11*(TAN(EV11))) -> 1.022416395 | EW12: =1/2*(EW11+EX11) -> 0.6161034982 | EX12: =SQRT(EW11*EX11) -> 0.4818786118 | EY12: =1/2*(EW11-EX11) -> 0.3838965018 | EZ12: =IF(EW12<>EX12,0,IF(EW12-EW13<>0,EW12,0)) -> 0 | FC12: =FM12*SIN(FJ12) -> 0.3267158265 | FD12: =FD11+1/2*2^(FF12)*FM12^2 -> 0.6401128601 | FE12: 1 | FF12: =FH12/(FK12*2^FE12) -> 1.180971048 | FH12: =IF(FI12<0,FH11+FI12+(INT(FH11/PI())+1)*PI(),FH11+INT(FH11/PI())*PI()+FI12) -> 1.455200788 | FI12: =ATAN(FL12/FK12*TAN(FH11)) -> 0.6667346635 | FJ12: =FJ11+ATAN(FL11/FK11*(TAN(FJ11))) -> 1.017985258 | FK12: =1/2*(FK11+FL11) -> 0.6161034982 | FL12: =SQRT(FK11*FL11) -> 0.4818786118 | FM12: =1/2*(FK11-FL11) -> 0.3838965018 | FN12: =IF(FK12<>FL12,0,IF(FK12-FK13<>0,FK12,0)) -> 0 | FQ12: =GA12*SIN(FX12) -> 0.3262689895 | FR12: =FR11+1/2*2^(FT12)*GA12^2 -> 0.6398288567 | FS12: 1 | FT12: =FV12/(FY12*2^FS12) -> 1.178516558 | FV12: =IF(FW12<0,FV11+FW12+(INT(FV11/PI())+1)*PI(),FV11+INT(FV11/PI())*PI()+FW12) -> 1.452176348 | FW12: =ATAN(FZ12/FY12*TAN(FV11)) -> 0.6652442038 | FX12: =FX11+ATAN(FZ11/FY11*(TAN(FX11))) -> 1.015772518 | FY12: =1/2*(FY11+FZ11) -> 0.6161034982 | FZ12: =SQRT(FY11*FZ11) -> 0.4818786118 | GA12: =1/2*(FY11-FZ11) -> 0.3838965018 | GB12: =IF(FY12<>FZ12,0,IF(FY12-FY13<>0,FY12,0)) -> 0 | GE12: =GO12*SIN(GL12) -> 0.3258209351 | GF12: =GF11+1/2*2^(GH12)*GO12^2 -> 0.6395454393 | GG12: 1 | GH12: =GJ12/(GM12*2^GG12) -> 1.176062961 | GJ12: =IF(GK12<0,GJ11+GK12+(INT(GJ11/PI())+1)*PI(),GJ11+INT(GJ11/PI())*PI()+GK12) -> 1.449153009 | GK12: =ATAN(GN12/GM12*TAN(GJ11)) -> 0.663754846 | GL12: =GL11+ATAN(GN11/GM11*(TAN(GL11))) -> 1.01356165 | GM12: =1/2*(GM11+GN11) -> 0.6161034982 | GN12: =SQRT(GM11*GN11) -> 0.4818786118 | GO12: =1/2*(GM11-GN11) -> 0.3838965018 | GP12: =IF(GM12<>GN12,0,IF(GM12-GM13<>0,GM12,0)) -> 0 | GS12: =HC12*SIN(GZ12) -> 0.3249211905 | GT12: =GT11+1/2*2^(GV12)*HC12^2 -> 0.6389803566 | GU12: 1 | GV12: =GX12/(HA12*2^GU12) -> 1.171158446 | GX12: =IF(GY12<0,GX11+GY12+(INT(GX11/PI())+1)*PI(),GX11+INT(GX11/PI())*PI()+GY12) -> 1.443109632 | GY12: =ATAN(HB12/HA12*TAN(GX11)) -> 0.6607794298 | GZ12: =GZ11+ATAN(HB11/HA11*(TAN(GZ11))) -> 1.009145489 | HA12: =1/2*(HA11+HB11) -> 0.6161034982 | HB12: =SQRT(HA11*HB11) -> 0.4818786118 | HC12: =1/2*(HA11-HB11) -> 0.3838965018 | HD12: =IF(HA12<>HB12,0,IF(HA12-HA13<>0,HA12,0)) -> 0
A13: 7 | B13: 0.8758079741 | C13: 0.8758079741 | D13: 0 | E13: 181.6104449 | F13: 1 | H13: 22.70130561 | M13: 2.861242114 | N13: =N12+X13*SIN(S13) -> 0.3419362078 | O13: =IF(X13<>0,O12+1/2*2^(P13)*X13^2,0) -> 0.6294246395 | P13: =P12+1 -> 2 | Q13: 1.313894318 | R13: =SIN(U13) -> 0.9455062091 | S13: =IF(T13<0,S12+T13+(INT(S12/PI())+1)*PI(),S12+INT(S12/PI())*PI()+T13) -> 2.885264912 | T13: =ATAN(W13/V13*TAN(S12)) -> 1.44215528 | U13: =U12+ATAN(W12/V12*(TAN(U12))) -> 1.902446867 | V13: =1/2*(V12+W12) -> 0.548991055 | W13: =SQRT(V12*W12) -> 0.5448734701 | X13: =1/2*(V12-W12) -> 0.06711244324 | Y13: 0 | AK13: 2.861242114 | AL13: =AL12+AV13*SIN(AQ13) -> 0.3420471789 | AM13: =AM12+1/2*2^(AO13)*AV13^2 -> 0.6451657544 | AN13: =AN12+1 -> 2 | AO13: 1.319418542 | AQ13: =IF(AR13<0,AQ12+AR13+(INT(AQ12/PI())+1)*PI(),AQ12+INT(AQ12/PI())*PI()+AR13) -> 2.897395909 | AR13: =ATAN(AU13/AT13*TAN(AQ12)) -> 1.448242899 | AS13: =AS12+ATAN(AU12/AT12*(TAN(AS12))) -> 1.911653022 | AT13: =1/2*(AT12+AU12) -> 0.548991055 | AU13: =SQRT(AT12*AU12) -> 0.5448734701 | AV13: =1/2*(AT12-AU12) -> 0.06711244324 | AW13: 0 | AZ13: If x <= Pi / 2 Then | BB13: eplires1 | BG13: 2.861242114 | BH13: =BH12+BR13*SIN(BM13) -> 0.3152483802 | BI13: =BI12+1/2*2^(BK13)*BR13^2 -> 0.7454519883 | BJ13: =BJ12+1 -> 2 | BK13: 2.061695359 | BM13: =IF(BN13<0,BM12+BN13+(INT(BM12/PI())+1)*PI(),BM12+INT(BM12/PI())*PI()+BN13) -> 4.527409241 | BN13: =ATAN(BQ13/BP13*TAN(BM12)) -> -0.8760380105 | BO13: =BO12+ATAN(BQ12/BP12*(TAN(BO12))) -> 0.2689802716 | BP13: =1/2*(BP12+BQ12) -> 0.548991055 | BQ13: =SQRT(BP12*BQ12) -> 0.5448734701 | BR13: =1/2*(BP12-BQ12) -> 0.06711244324 | BS13: 0 | BW13: =BW12+CG13*SIN(CB13) -> 0.3363582348 | BX13: =BX12+1/2*2^(BZ13)*CG13^2 -> 0.6883647134 | BY13: =BY12+1 -> 2 | BZ13: 1.681764287 | CB13: =IF(CC13<0,CB12+CC13+(INT(CB12/PI())+1)*PI(),CB12+INT(CB12/PI())*PI()+CC13) -> 3.693094201 | CC13: =ATAN(CF13/CE13*TAN(CB12)) -> -1.29405938 | CD13: =CD12+ATAN(CF12/CE12*(TAN(CD12))) -> 2.565816081 | CE13: =1/2*(CE12+CF12) -> 0.548991055 | CF13: =SQRT(CE12*CF12) -> 0.5448734701 | CG13: =1/2*(CE12-CF12) -> 0.06711244324 | CH13: 0 | CK13: =CK12+CU13*SIN(CP13) -> 0.341900404 | CL13: =CL12+1/2*2^(CN13)*CU13^2 -> 0.6652931585 | CM13: =CM12+1 -> 2 | CN13: 1.498394017 | CP13: =IF(CQ13<0,CP12+CQ13+(INT(CP12/PI())+1)*PI(),CP12+INT(CP12/PI())*PI()+CQ13) -> 3.290419648 | CQ13: =ATAN(CT13/CS13*TAN(CP12)) -> -1.496103751 | CR13: =CR12+ATAN(CT12/CS12*(TAN(CR12))) -> 2.221176171 | CS13: =1/2*(CS12+CT12) -> 0.548991055 | CT13: =SQRT(CS12*CT12) -> 0.5448734701 | CU13: =1/2*(CS12-CT12) -> 0.06711244324 | CV13: 0 | CY13: =CY12+DI13*SIN(DD13) -> 0.3428116407 | CZ13: =CZ12+1/2*2^(DB13)*DI13^2 -> 0.6548907693 | DA13: =DA12+1 -> 2 | DB13: 1.408367409 | DD13: =IF(DE13<0,DD12+DE13+(INT(DD12/PI())+1)*PI(),DD12+INT(DD12/PI())*PI()+DE13) -> 3.09272444 | DE13: =ATAN(DH13/DG13*TAN(DD12)) -> 1.54627028 | DF13: =DF12+ATAN(DH12/DG12*(TAN(DF12))) -> 2.062616462 | DG13: =1/2*(DG12+DH12) -> 0.548991055 | DH13: =SQRT(DG12*DH12) -> 0.5448734701 | DI13: =1/2*(DG12-DH12) -> 0.06711244324 | DJ13: 0 | DM13: =DM12+DW13*SIN(DR13) -> 0.3426597053 | DN13: =DN12+1/2*2^(DP13)*DW13^2 -> 0.6499470221 | DO13: =DO12+1 -> 2 | DP13: 1.363760107 | DR13: =IF(DS13<0,DR12+DS13+(INT(DR12/PI())+1)*PI(),DR12+INT(DR12/PI())*PI()+DS13) -> 2.9947684 | DS13: =ATAN(DV13/DU13*TAN(DR12)) -> 1.49710885 | DT13: =DT12+ATAN(DV12/DU12*(TAN(DT12))) -> 1.986249911 | DU13: =1/2*(DU12+DV12) -> 0.548991055 | DV13: =SQRT(DU12*DV12) -> 0.5448734701 | DW13: =1/2*(DU12-DV12) -> 0.06711244324 | DX13: 0 | EA13: =EA12+EK13*SIN(EF13) -> 0.3424135667 | EB13: =EB12+1/2*2^(ED13)*EK13^2 -> 0.6475364928 | EC13: =EC12+1 -> 2 | ED13: 1.341556369 | EF13: =IF(EG13<0,EF12+EG13+(INT(EF12/PI())+1)*PI(),EF12+INT(EF12/PI())*PI()+EG13) -> 2.946009785 | EG13: =ATAN(EJ13/EI13*TAN(EF12)) -> 1.472639123 | EH13: =EH12+ATAN(EJ12/EI12*(TAN(EH12))) -> 1.94873784 | EI13: =1/2*(EI12+EJ12) -> 0.548991055 | EJ13: =SQRT(EI12*EJ12) -> 0.5448734701 | EK13: =1/2*(EI12-EJ12) -> 0.06711244324 | EL13: 0 | EO13: =EO12+EY13*SIN(ET13) -> 0.3422457174 | EP13: =EP12+1/2*2^(ER13)*EY13^2 -> 0.6463462007 | EQ13: =EQ12+1 -> 2 | ER13: 1.330479251 | ET13: =IF(EU13<0,ET12+EU13+(INT(ET12/PI())+1)*PI(),ET12+INT(ET12/PI())*PI()+EU13) -> 2.92168483 | EU13: =ATAN(EX13/EW13*TAN(ET12)) -> 1.460431848 | EV13: =EV12+ATAN(EX12/EW12*(TAN(EV12))) -> 1.930142942 | EW13: =1/2*(EW12+EX12) -> 0.548991055 | EX13: =SQRT(EW12*EX12) -> 0.5448734701 | EY13: =1/2*(EW12-EX12) -> 0.06711244324 | EZ13: 0 | FC13: =FC12+FM13*SIN(FH13) -> 0.3421503231 | FD13: =FD12+1/2*2^(FF13)*FM13^2 -> 0.6457547531 | FE13: =FE12+1 -> 2 | FF13: 1.324946849 | FH13: =IF(FI13<0,FH12+FI13+(INT(FH12/PI())+1)*PI(),FH12+INT(FH12/PI())*PI()+FI13) -> 2.909535875 | FI13: =ATAN(FL13/FK13*TAN(FH12)) -> 1.454335086 | FJ13: =FJ12+ATAN(FL12/FK12*(TAN(FJ12))) -> 1.920884973 | FK13: =1/2*(FK12+FL12) -> 0.548991055 | FL13: =SQRT(FK12*FL12) -> 0.5448734701 | FM13: =1/2*(FK12-FL12) -> 0.06711244324 | FN13: 0 | FQ13: =FQ12+GA13*SIN(FV13) -> 0.3420997246 | FR13: =FR12+1/2*2^(FT13)*GA13^2 -> 0.6454599484 | FS13: =FS12+1 -> 2 | FT13: 1.322182184 | FV13: =IF(FW13<0,FV12+FW13+(INT(FV12/PI())+1)*PI(),FV12+INT(FV12/PI())*PI()+FW13) -> 2.903464769 | FW13: =ATAN(FZ13/FY13*TAN(FV12)) -> 1.451288421 | FX13: =FX12+ATAN(FZ12/FY12*(TAN(FX12))) -> 1.916265759 | FY13: =1/2*(FY12+FZ12) -> 0.548991055 | FZ13: =SQRT(FY12*FZ12) -> 0.5448734701 | GA13: =1/2*(FY12-FZ12) -> 0.06711244324 | GB13: 0 | GE13: =GE12+GO13*SIN(GJ13) -> 0.3420471789 | GF13: =GF12+1/2*2^(GH13)*GO13^2 -> 0.6451657544 | GG13: =GG12+1 -> 2 | GH13: 1.319418542 | GJ13: =IF(GK13<0,GJ12+GK13+(INT(GJ12/PI())+1)*PI(),GJ12+INT(GJ12/PI())*PI()+GK13) -> 2.897395909 | GK13: =ATAN(GN13/GM13*TAN(GJ12)) -> 1.448242899 | GL13: =GL12+ATAN(GN12/GM12*(TAN(GL12))) -> 1.911653022 | GM13: =1/2*(GM12+GN12) -> 0.548991055 | GN13: =SQRT(GM12*GN12) -> 0.5448734701 | GO13: =1/2*(GM12-GN12) -> 0.06711244324 | GP13: 0 | GS13: =GS12+HC13*SIN(GX13) -> 0.3419362078 | GT13: =GT12+1/2*2^(GV13)*HC13^2 -> 0.644579192 | GU13: =GU12+1 -> 2 | GV13: 1.313894318 | GX13: =IF(GY13<0,GX12+GY13+(INT(GX12/PI())+1)*PI(),GX12+INT(GX12/PI())*PI()+GY13) -> 2.885264912 | GY13: =ATAN(HB13/HA13*TAN(GX12)) -> 1.44215528 | GZ13: =GZ12+ATAN(HB12/HA12*(TAN(GZ12))) -> 1.902446867 | HA13: =1/2*(HA12+HB12) -> 0.548991055 | HB13: =SQRT(HA12*HB12) -> 0.5448734701 | HC13: =1/2*(HA12-HB12) -> 0.06711244324 | HD13: 0
A14: 8 | B14: 0.8758079741 | C14: 0.8758079741 | D14: 0 | E14: 363.2208898 | F14: 1 | H14: 22.70130561 | M14: 2.872012559 | N14: 0.3409263874 | O14: 0.629441594 | P14: 3 | Q14: 1.318840548 | R14: 0.6175513881 | S14: =IF(T14<0,S13+T14+(INT(S13/PI())+1)*PI(),S13+INT(S13/PI())*PI()+T14) -> 5.770531561 | T14: -0.2563260044 | U14: 0.665625703 | V14: 0.5469322626 | W14: 0.5469283876 | X14: 0.002058792443 | Y14: 0 | AK14: 2.872012559 | AL14: 0.3410811804 | AM14: 0.6451710617 | AN14: 3 | AO14: 1.324385549 | AQ14: =IF(AR14<0,AQ13+AR14+(INT(AQ13/PI())+1)*PI(),AQ13+INT(AQ13/PI())*PI()+AR14) -> 5.794793479 | AR14: -0.2441950829 | AS14: 0.6840922886 | AT14: 0.5469322626 | AU14: 0.5469283876 | AV14: 0.002058792443 | AW14: 0 | AZ14: elle2 = elle(phi, ak) | BG14: 2.872012559 | BH14: 0.315992796 | BI14: 0.7454608837 | BJ14: 3 | BK14: 2.069455813 | BM14: =IF(BN14<0,BM13+BN14+(INT(BM13/PI())+1)*PI(),BM13+INT(BM13/PI())*PI()+BN14) -> 9.054817201 | BN14: 1.385815307 | BO14: 0.5360380101 | BP14: 0.5469322626 | BQ14: 0.5469283876 | BR14: 0.002058792443 | BS14: 0 | BW14: 0.338195839 | BX14: 0.6883715424 | BY14: 3 | BZ14: 1.688094154 | CB14: =IF(CC14<0,CB13+CC14+(INT(CB13/PI())+1)*PI(),CB13+INT(CB13/PI())*PI()+CC14) -> 7.386185241 | CC14: 0.5514983859 | CD14: 1.993472495 | CE14: 0.5469322626 | CF14: 0.5469283876 | CG14: 0.002058792443 | CH14: 0 | CK14: 0.3425042008 | CL14: 0.6652991697 | CM14: 3 | CN14: 1.504034116 | CP14: =IF(CQ14<0,CP13+CQ14+(INT(CP13/PI())+1)*PI(),CP13+INT(CP13/PI())*PI()+CQ14) -> 6.580838257 | CQ14: 0.1488259557 | CR14: 1.304391162 | CS14: 0.5469322626 | CT14: 0.5469283876 | CU14: 0.002058792443 | CV14: 0 | CY14: 0.3426107426 | CZ14: 0.6548964154 | DA14: 3 | DB14: 1.413668942 | DD14: =IF(DE14<0,DD13+DE14+(INT(DD13/PI())+1)*PI(),DD13+INT(DD13/PI())*PI()+DE14) -> 6.185449225 | DE14: -0.04886786806 | DF14: 0.9867806245 | DG14: 0.5469322626 | DH14: 0.5469283876 | DI14: 0.002058792443 | DJ14: 0 | DM14: 0.3420637971 | DN14: 0.6499524957 | DO14: 3 | DP14: 1.368893882 | DR14: =IF(DS14<0,DR13+DS14+(INT(DR13/PI())+1)*PI(),DR13+INT(DR13/PI())*PI()+DS14) -> 5.989537825 | DS14: -0.1468232283 | DT14: 0.8336943004 | DU14: 0.5469322626 | DV14: 0.5469283876 | DW14: 0.002058792443 | DX14: 0 | EA14: 0.3416286209 | EB14: 0.6475418825 | EC14: 3 | ED14: 1.346606637 | EF14: =IF(EG14<0,EF13+EG14+(INT(EF13/PI())+1)*PI(),EF13+INT(EF13/PI())*PI()+EG14) -> 5.89202092 | EG14: -0.1955815183 | EH14: 0.758472133 | EI14: 0.5469322626 | EJ14: 0.5469283876 | EK14: 0.002058792443 | EL14: 0 | EO14: 0.3413691427 | EP14: 0.646351549 | EQ14: 3 | ER14: 1.335487858 | ET14: =IF(EU14<0,ET13+EU14+(INT(ET13/PI())+1)*PI(),ET13+INT(ET13/PI())*PI()+EU14) -> 5.843371168 | EU14: -0.2199063154 | EV14: 0.7211786591 | EW14: 0.5469322626 | EX14: 0.5469283876 | EY14: 0.002058792443 | EZ14: 0 | FC14: 0.3412287481 | FD14: 0.6457600809 | FE14: 3 | FF14: 1.32993465 | FH14: =IF(FI14<0,FH13+FI14+(INT(FH13/PI())+1)*PI(),FH13+INT(FH13/PI())*PI()+FI14) -> 5.819073335 | FI14: -0.2320551931 | FJ14: 0.7026097997 | FK14: 0.5469322626 | FL14: 0.5469283876 | FM14: 0.002058792443 | FN14: 0 | FQ14: 0.3411558642 | FR14: 0.645465266 | FS14: 3 | FT14: 1.327159586 | FV14: =IF(FW14<0,FV13+FW14+(INT(FV13/PI())+1)*PI(),FV13+INT(FV13/PI())*PI()+FW14) -> 5.806931163 | FW14: -0.2381262603 | FX14: 0.6933446521 | FY14: 0.5469322626 | FZ14: 0.5469283876 | GA14: 0.002058792443 | GB14: 0 | GE14: 0.3410811804 | GF14: 0.6451710617 | GG14: 3 | GH14: 1.324385549 | GJ14: =IF(GK14<0,GJ13+GK14+(INT(GJ13/PI())+1)*PI(),GJ13+INT(GJ13/PI())*PI()+GK14) -> 5.794793479 | GK14: -0.2441950829 | GL14: 0.6840922886 | GM14: 0.5469322626 | GN14: 0.5469283876 | GO14: 0.002058792443 | GP14: 0 | GS14: 0.3409263874 | GT14: 0.644584479 | GU14: 3 | GV14: 1.318840548 | GX14: =IF(GY14<0,GX13+GY14+(INT(GX13/PI())+1)*PI(),GX13+INT(GX13/PI())*PI()+GY14) -> 5.770531561 | GY14: -0.2563260044 | GZ14: 0.665625703 | HA14: 0.5469322626 | HB14: 0.5469283876 | HC14: 0.002058792443 | HD14: 0
A15: 9 | B15: 0.8758079741 | C15: 0.8758079741 | D15: 0 | E15: 726.4417796 | F15: 1 | H15: 22.70130561 | M15: 2.872022733 | N15: 0.3409247311 | O15: 0.6294415941 | P15: 4 | Q15: 1.31884522 | R15: 0.9714452313 | S15: 11.54106312 | T15: -0.5126537464 | U15: 1.331247965 | V15: 0.5469303251 | W15: 0.5469303251 | X15: 1.937461744e-06 | Y15: 0 | AK15: 2.872022733 | AL15: 0.3410795748 | AM15: 0.6451710617 | AN15: 4 | AO15: 1.324390241 | AQ15: 11.58958696 | AR15: -0.4883918279 | AS15: 1.368181107 | AT15: 0.5469303251 | AU15: 0.5469303251 | AV15: 1.937461744e-06 | AW15: 0 | AZ15: Exit Function | BG15: 2.872022733 | BH15: 0.3159914897 | BI15: 0.7454608837 | BJ15: 4 | BK15: 2.069463144 | BM15: 18.1096344 | BN15: -0.3699607594 | BO15: 1.072072909 | BP15: 0.5469303251 | BQ15: 0.5469303251 | BR15: 1.937461744e-06 | BS15: 0 | BW15: 0.3381973986 | BX15: 0.6883715425 | BY15: 4 | BZ15: 1.688100134 | CB15: 14.77237048 | CC15: 1.102999934 | CD15: 0.8453549872 | CE15: 0.5469303251 | CF15: 0.5469303251 | CG15: 1.937461744e-06 | CH15: 0 | CK15: 0.3425052872 | CL15: 0.6652991697 | CM15: 4 | CN15: 1.504039444 | CP15: 13.16167651 | CQ15: 0.2976529503 | CR15: 2.608780525 | CS15: 0.5469303251 | CT15: 0.5469303251 | CU15: 1.937461744e-06 | CV15: 0 | CY15: 0.3426103663 | CZ15: 0.6548964154 | DA15: 4 | DB15: 1.41367395 | DD15: 12.37089845 | DE15: -0.09773608178 | DF15: 1.97355799 | DG15: 0.5469303251 | DH15: 0.5469303251 | DI15: 1.937461744e-06 | DJ15: 0 | DM15: 0.3420627236 | DN15: 0.6499524957 | DO15: 4 | DP15: 1.368898731 | DR15: 11.97907565 | DS15: -0.2936474819 | DT15: 1.667385075 | DU15: 0.5469303251 | DV15: 0.5469303251 | DW15: 1.937461744e-06 | DX15: 0 | EA15: 0.3416272552 | EB15: 0.6475418825 | EC15: 4 | ED15: 1.346611408 | EF15: 11.78404184 | EG15: -0.3911643871 | EH15: 1.516940729 | EI15: 0.5469303251 | EJ15: 0.5469303251 | EK15: 1.937461744e-06 | EL15: 0 | EO15: 0.3413676499 | EP15: 0.646351549 | EQ15: 4 | ER15: 1.335492589 | ET15: 11.68674234 | EU15: -0.439814139 | EV15: 1.442353805 | EW15: 0.5469303251 | EX15: 0.5469303251 | EY15: 1.937461744e-06 | EZ15: 0 | FC15: 0.3412271971 | FD15: 0.6457600809 | FE15: 4 | FF15: 1.329939361 | FH15: 11.63814667 | FI15: -0.4641119719 | FJ15: 1.405216105 | FK15: 0.5469303251 | FL15: 0.5469303251 | FM15: 1.937461744e-06 | FN15: 0 | FQ15: 0.3411542854 | FR15: 0.645465266 | FS15: 4 | FT15: 1.327164288 | FV15: 11.61386233 | FW15: -0.4762541445 | FX15: 1.386685822 | FY15: 0.5469303251 | FZ15: 0.5469303251 | GA15: 1.937461744e-06 | GB15: 0 | GE15: 0.3410795748 | GF15: 0.6451710617 | GG15: 4 | GH15: 1.324390241 | GJ15: 11.58958696 | GK15: -0.4883918279 | GL15: 1.368181107 | GM15: 0.5469303251 | GN15: 0.5469303251 | GO15: 1.937461744e-06 | GP15: 0 | GS15: 0.3409247311 | GT15: 0.644584479 | GU15: 4 | GV15: 1.31884522 | GX15: 11.54106312 | GY15: -0.5126537464 | GZ15: 1.331247965 | HA15: 0.5469303251 | HB15: 0.5469303251 | HC15: 1.937461744e-06 | HD15: 0
A16: 10 | B16: 0.8758079741 | C16: 0.8758079741 | D16: 0 | E16: 1452.883559 | F16: 1 | H16: 22.70130561 | M16: 2.872022733 | N16: =N15+X16*SIN(S16) -> 0.3409247311 | O16: 0.6294415941 | P16: 5 | Q16: 1.31884522 | R16: 0.460977786 | S16: 23.08212624 | T16: -1.025307493 | U16: 2.66249593 | V16: 0.5469303251 | W16: 0.5469303251 | X16: 1.715849685e-12 | Y16: 0 | AB16: ΠΡΟΧΩΡΗΜΑ Ν= | AC16: 8 | AE16: Function antieLLE2(xa, ak, eplirous) | AK16: 2.872022733 | AL16: 0.3410795748 | AM16: 0.6451710617 | AN16: 5 | AO16: 1.324390241 | AQ16: 23.17917392 | AR16: -0.9767836557 | AS16: 2.736362214 | AT16: 0.5469303251 | AU16: 0.5469303251 | AV16: 1.715849685e-12 | AW16: 0 | AZ16: End If | BG16: 2.872022733 | BH16: 0.3159914897 | BI16: 0.7454608837 | BJ16: 5 | BK16: 2.069463144 | BM16: 36.21926881 | BN16: -0.7399215189 | BO16: 2.144145818 | BP16: 0.5469303251 | BQ16: 0.5469303251 | BR16: 1.715849685e-12 | BS16: 0 | BW16: 0.3381973986 | BX16: 0.6883715425 | BY16: 5 | BZ16: 1.688100134 | CB16: 29.54474096 | CC16: -0.9355927864 | CD16: 1.690709974 | CE16: 0.5469303251 | CF16: 0.5469303251 | CG16: 1.715849685e-12 | CH16: 0 | CK16: 0.3425052872 | CL16: 0.6652991697 | CM16: 5 | CN16: 1.504039444 | CP16: 26.32335303 | CQ16: 0.5953059005 | CR16: 2.075968396 | CS16: 0.5469303251 | CT16: 0.5469303251 | CU16: 1.715849685e-12 | CV16: 0 | CY16: 0.3426103663 | CZ16: 0.6548964154 | DA16: 5 | DB16: 1.41367395 | DD16: 24.7417969 | DE16: -0.1954721636 | DF16: 0.8055233263 | DG16: 0.5469303251 | DH16: 0.5469303251 | DI16: 1.715849685e-12 | DJ16: 0 | DM16: 0.3420627236 | DN16: 0.6499524957 | DO16: 5 | DP16: 1.368898731 | DR16: 23.9581513 | DS16: -0.5872949638 | DT16: 0.193177496 | DU16: 0.5469303251 | DV16: 0.5469303251 | DW16: 1.715849685e-12 | DX16: 0 | EA16: 0.3416272552 | EB16: 0.6475418825 | EC16: 5 | ED16: 1.346611408 | EF16: 23.56808368 | EG16: -0.7823287742 | EH16: 3.033881458 | EI16: 0.5469303251 | EJ16: 0.5469303251 | EK16: 1.715849685e-12 | EL16: 0 | EO16: 0.3413676499 | EP16: 0.646351549 | EQ16: 5 | ER16: 1.335492589 | ET16: 23.37348467 | EU16: -0.879628278 | EV16: 2.88470761 | EW16: 0.5469303251 | EX16: 0.5469303251 | EY16: 1.715849685e-12 | EZ16: 0 | FC16: 0.3412271971 | FD16: 0.6457600809 | FE16: 5 | FF16: 1.329939361 | FH16: 23.27629334 | FI16: -0.9282239438 | FJ16: 2.810432211 | FK16: 0.5469303251 | FL16: 0.5469303251 | FM16: 1.715849685e-12 | FN16: 0 | FQ16: 0.3411542854 | FR16: 0.645465266 | FS16: 5 | FT16: 1.327164288 | FV16: 23.22772465 | FW16: -0.9525082891 | FX16: 2.773371643 | FY16: 0.5469303251 | FZ16: 0.5469303251 | GA16: 1.715849685e-12 | GB16: 0 | GE16: 0.3410795748 | GF16: 0.6451710617 | GG16: 5 | GH16: 1.324390241 | GJ16: 23.17917392 | GK16: -0.9767836557 | GL16: 2.736362214 | GM16: 0.5469303251 | GN16: 0.5469303251 | GO16: 1.715849685e-12 | GP16: 0 | GS16: 0.3409247311 | GT16: 0.644584479 | GU16: 5 | GV16: 1.31884522 | GX16: 23.08212624 | GY16: -1.025307493 | GZ16: 2.66249593 | HA16: 0.5469303251 | HB16: 0.5469303251 | HC16: 1.715849685e-12 | HD16: 0
A17: 11 | B17: 0.8758079741 | C17: 0.8758079741 | D17: 0 | E17: 2905.767118 | F17: 1 | H17: 22.70130561 | M17: 2.872022733 | N17: 0.3409247311 | O17: 0 | P17: 6 | Q17: 1.31884522 | R17: 0.8181541384 | S17: 46.16425249 | T17: 1.090977668 | U17: 2.183399206 | V17: 0.5469303251 | W17: 0.5469303251 | X17: 0 | Y17: 0 | AB17: 180/Ν | AC17: =180/AC16 -> 22.5 | AE17: S11 = xa | AK17: 2.872022733 | AL17: 0.3410795748 | AM17: 0.6451710617 | AN17: 6 | AO17: 1.324390241 | AQ17: 46.35834783 | AR17: 1.188025342 | AS17: 2.331131775 | AT17: 0.5469303251 | AU17: 0.5469303251 | AV17: 0 | AW17: 0 | AZ17: Pi = 4 * Atn(1) | BG17: 2.872022733 | BH17: 0.3159914897 | BI17: 0.7454608837 | BJ17: 6 | BK17: 2.069463144 | BM17: 72.43853761 | BN17: -1.479843038 | BO17: 1.146698983 | BP17: 0.5469303251 | BQ17: 0.5469303251 | BR17: 0 | BS17: 0 | BW17: 0.3381973986 | BX17: 0.6883715425 | BY17: 6 | BZ17: 1.688100134 | CB17: 59.08948193 | CC17: 1.270407081 | CD17: 0.2398272952 | CE17: 0.5469303251 | CF17: 0.5469303251 | CG17: 0 | CH17: 0 | CK17: 0.3425052872 | CL17: 0.6652991697 | CM17: 6 | CN17: 1.504039444 | CP17: 52.64670606 | CQ17: 1.190611801 | CR17: 1.010344138 | CS17: 0.5469303251 | CT17: 0.5469303251 | CU17: 0 | CV17: 0 | CY17: 0.3426103663 | CZ17: 0.6548964154 | DA17: 6 | DB17: 1.41367395 | DD17: 49.4835938 | DE17: -0.3909443271 | DF17: 1.611046653 | DG17: 0.5469303251 | DH17: 0.5469303251 | DI17: 0 | DJ17: 0 | DM17: 0.3420627236 | DN17: 0.6499524957 | DO17: 6 | DP17: 1.368898731 | DR17: 47.9163026 | DS17: -1.174589928 | DT17: 0.3863549921 | DU17: 0.5469303251 | DV17: 0.5469303251 | DW17: 0 | DX17: 0 | EA17: 0.3416272552 | EB17: 0.6475418825 | EC17: 6 | ED17: 1.346611408 | EF17: 47.13616736 | EG17: -1.564657548 | EH17: 2.926170262 | EI17: 0.5469303251 | EJ17: 0.5469303251 | EK17: 0 | EL17: 0 | EO17: 0.3413676499 | EP17: 0.646351549 | EQ17: 6 | ER17: 1.335492589 | ET17: 46.74696935 | EU17: 1.382336098 | EV17: 2.627822566 | EW17: 0.5469303251 | EX17: 0.5469303251 | EY17: 0 | EZ17: 0 | FC17: 0.3412271971 | FD17: 0.6457600809 | FE17: 6 | FF17: 1.329939361 | FH17: 46.55258668 | FI17: 1.285144766 | FJ17: 2.479271768 | FK17: 0.5469303251 | FL17: 0.5469303251 | FM17: 0 | FN17: 0 | FQ17: 0.3411542854 | FR17: 0.645465266 | FS17: 6 | FT17: 1.327164288 | FV17: 46.4554493 | FW17: 1.236576075 | FX17: 2.405150633 | FY17: 0.5469303251 | FZ17: 0.5469303251 | GA17: 0 | GB17: 0 | GE17: 0.3410795748 | GF17: 0.6451710617 | GG17: 6 | GH17: 1.324390241 | GJ17: 46.35834783 | GK17: 1.188025342 | GL17: 2.331131775 | GM17: 0.5469303251 | GN17: 0.5469303251 | GO17: 0 | GP17: 0 | GS17: 0.3409247311 | GT17: 0.644584479 | GU17: 6 | GV17: 1.31884522 | GX17: 46.16425249 | GY17: 1.090977668 | GZ17: 2.183399206 | HA17: 0.5469303251 | HB17: 0.5469303251 | HC17: 0 | HD17: 0
A18: 12 | B18: 0.8758079741 | C18: 0.8758079741 | D18: 0 | F18: 1 | M18: 2.872022733 | N18: 0.3409247311 | O18: 0 | P18: 7 | Q18: 1.31884522 | R18: 0.94087556 | S18: 92.32850497 | T18: -0.9596373178 | U18: 1.225205758 | V18: 0.5469303251 | W18: 0.5469303251 | X18: 0 | Y18: 0 | AB18: 1 | AC18: =AC17/2 -> 11.25 | AE18: Pi = CDbl(4 * Atn(1)) | AK18: 2.872022733 | AL18: 0.3410795748 | AM18: 0.6451710617 | AN18: 7 | AO18: 1.324390241 | AQ18: 92.71669567 | AR18: -0.7655419694 | AS18: 1.520670897 | AT18: 0.5469303251 | AU18: 0.5469303251 | AV18: 0 | AW18: 0 | AZ18: int1 = Int(x / Pi) ' äßíåé ðüóåò öïñÝò ÷ùñÜ ôï ð óôï x | BG18: 2.872022733 | BH18: 0.3159914897 | BI18: 0.7454608837 | BJ18: 7 | BK18: 2.069463144 | BM18: 144.8770752 | BN18: 0.1819065782 | BO18: 2.293397966 | BP18: 0.5469303251 | BQ18: 0.5469303251 | BR18: 0 | BS18: 0 | BW18: 0.3381973986 | BX18: 0.6883715425 | BY18: 7 | BZ18: 1.688100134 | CB18: 118.1789639 | CC18: -0.6007784922 | CD18: 0.4796545904 | CE18: 0.5469303251 | CF18: 0.5469303251 | CG18: 0 | CH18: 0 | CK18: 0.3425052872 | CL18: 0.6652991697 | CM18: 7 | CN18: 1.504039444 | CP18: 105.2934121 | CQ18: -0.7603690514 | CR18: 2.020688275 | CS18: 0.5469303251 | CT18: 0.5469303251 | CU18: 0 | CV18: 0 | CY18: 0.3426103663 | CZ18: 0.6548964154 | DA18: 7 | DB18: 1.41367395 | DD18: 98.96718761 | DE18: -0.7818886543 | DF18: 0.08050065172 | DG18: 0.5469303251 | DH18: 0.5469303251 | DI18: 0 | DJ18: 0 | DM18: 0.3420627236 | DN18: 0.6499524957 | DO18: 7 | DP18: 1.368898731 | DR18: 95.8326052 | DS18: 0.7924127985 | DT18: 0.7727099841 | DU18: 0.5469303251 | DV18: 0.5469303251 | DW18: 0 | DX18: 0 | EA18: 0.3416272552 | EB18: 0.6475418825 | EC18: 7 | ED18: 1.346611408 | EF18: 94.27233472 | EG18: 0.01227755674 | EH18: 2.71074787 | EI18: 0.5469303251 | EJ18: 0.5469303251 | EK18: 0 | EL18: 0 | EO18: 0.3413676499 | EP18: 0.646351549 | EQ18: 7 | ER18: 1.335492589 | ET18: 93.49393869 | EU18: -0.3769204585 | EV18: 2.114052479 | EW18: 0.5469303251 | EX18: 0.5469303251 | EY18: 0 | EZ18: 0 | FC18: 0.3412271971 | FD18: 0.6457600809 | FE18: 7 | FF18: 1.329939361 | FH18: 93.10517336 | FI18: -0.5713031216 | FJ18: 1.816950883 | FK18: 0.5469303251 | FL18: 0.5469303251 | FM18: 0 | FN18: 0 | FQ18: 0.3411542854 | FR18: 0.645465266 | FS18: 7 | FT18: 1.327164288 | FV18: 92.9108986 | FW18: -0.6684405028 | FX18: 1.668708613 | FY18: 0.5469303251 | FZ18: 0.5469303251 | GA18: 0 | GB18: 0 | GE18: 0.3410795748 | GF18: 0.6451710617 | GG18: 7 | GH18: 1.324390241 | GJ18: 92.71669567 | GK18: -0.7655419694 | GL18: 1.520670897 | GM18: 0.5469303251 | GN18: 0.5469303251 | GO18: 0 | GP18: 0 | GS18: 0.3409247311 | GT18: 0.644584479 | GU18: 7 | GV18: 1.31884522 | GX18: 92.32850497 | GY18: -0.9596373178 | GZ18: 1.225205758 | HA18: 0.5469303251 | HB18: 0.5469303251 | HC18: 0 | HD18: 0
A19: 13 | M19: 2.872022733 | N19: 0.3409247311 | O19: 0 | P19: 8 | Q19: 1.31884522 | R19: 0.637447686 | S19: 184.6570099 | T19: 1.222318018 | U19: 2.450411516 | V19: 0.5469303251 | W19: 0.5469303251 | X19: 0 | Y19: 0.5469303251 | AB19: =AB18+1 -> 2 | AC19: =AC18/2 -> 5.625 | AE19: n11 = Int(S11 / eplirous) | AK19: 2.872022733 | AL19: 0.3410795748 | AM19: 0.6451710617 | AN19: 8 | AO19: 1.324390241 | AQ19: 185.4333913 | AR19: -1.531083939 | AS19: 3.041341794 | AT19: 0.5469303251 | AU19: 0.5469303251 | AV19: 0 | AW19: 0.5469303251 | AZ19: int2 = Int(2 * x / Pi) 'äßíåé ðüóåò öïñÝò ÷ùñÜ ôï ð/2 óôï ÷ | BG19: 2.872022733 | BH19: 0.3159914897 | BI19: 0.7454608837 | BJ19: 8 | BK19: 2.069463144 | BM19: 289.7541504 | BN19: 0.3638131564 | BO19: 1.445203279 | BP19: 0.5469303251 | BQ19: 0.5469303251 | BR19: 0 | BS19: 0.5469303251 | BW19: 0.3381973986 | BX19: 0.6883715425 | BY19: 8 | BZ19: 1.688100134 | CB19: 236.3579277 | CC19: -1.201556984 | CD19: 0.9593091808 | CE19: 0.5469303251 | CF19: 0.5469303251 | CG19: 0 | CH19: 0.5469303251 | CK19: 0.3425052872 | CL19: 0.6652991697 | CM19: 8 | CN19: 1.504039444 | CP19: 210.5868242 | CQ19: -1.520738103 | CR19: 0.899783897 | CS19: 0.5469303251 | CT19: 0.5469303251 | CU19: 0 | CV19: 0.5469303251 | CY19: 0.3426103663 | CZ19: 0.6548964154 | DA19: 8 | DB19: 1.41367395 | DD19: 197.9343752 | DE19: -1.563777309 | DF19: 0.1610013034 | DG19: 0.5469303251 | DH19: 0.5469303251 | DI19: 0 | DJ19: 0.5469303251 | DM19: 0.3420627236 | DN19: 0.6499524957 | DO19: 8 | DP19: 1.368898731 | DR19: 191.6652104 | DS19: -1.556767057 | DT19: 1.545419968 | DU19: 0.5469303251 | DV19: 0.5469303251 | DW19: 0 | DX19: 0.5469303251 | EA19: 0.3416272552 | EB19: 0.6475418825 | EC19: 8 | ED19: 1.346611408 | EF19: 188.5446694 | EG19: 0.02455511348 | EH19: 2.279903086 | EI19: 0.5469303251 | EJ19: 0.5469303251 | EK19: 0 | EL19: 0.5469303251 | EO19: 0.3413676499 | EP19: 0.646351549 | EQ19: 8 | ER19: 1.335492589 | ET19: 186.9878774 | EU19: -0.753840917 | EV19: 1.086512304 | EW19: 0.5469303251 | EX19: 0.5469303251 | EY19: 0 | EZ19: 0.5469303251 | FC19: 0.3412271971 | FD19: 0.6457600809 | FE19: 8 | FF19: 1.329939361 | FH19: 186.2103467 | FI19: -1.142606243 | FJ19: 0.4923091118 | FK19: 0.5469303251 | FL19: 0.5469303251 | FM19: 0 | FN19: 0.5469303251 | FQ19: 0.3411542854 | FR19: 0.645465266 | FS19: 8 | FT19: 1.327164288 | FV19: 185.8217972 | FW19: -1.336881006 | FX19: 0.1958245719 | FY19: 0.5469303251 | FZ19: 0.5469303251 | GA19: 0 | GB19: 0.5469303251 | GE19: 0.3410795748 | GF19: 0.6451710617 | GG19: 8 | GH19: 1.324390241 | GJ19: 185.4333913 | GK19: -1.531083939 | GL19: 3.041341794 | GM19: 0.5469303251 | GN19: 0.5469303251 | GO19: 0 | GP19: 0.5469303251 | GS19: 0.3409247311 | GT19: 0.644584479 | GU19: 8 | GV19: 1.31884522 | GX19: 184.6570099 | GY19: 1.222318018 | GZ19: 2.450411516 | HA19: 0.5469303251 | HB19: 0.5469303251 | HC19: 0 | HD19: 0.5469303251
A20: 14 | N20: 0.3409247311 | P20: 9 | AB20: =AB19+1 -> 3 | AC20: 2.8125 | AE20: x1 = Pi / 4 + Pi / 2 * n11: | AL20: 0.3410795748 | AN20: 9 | AZ20: aker1 = CDbl(int1 * Pi) 'äßíåé ôï ð*int1, ïðüôå ôï õðüëïéïð x-aker1=ãùíßá ãéá ôçí ïðïßá õðïëïãßæåôáé ôï ôüîï | BH20: 0.3159914897 | BJ20: 9 | BW20: 0.3381973986 | BY20: 9 | CK20: 0.3425052872 | CM20: 9 | CY20: 0.3426103663 | DA20: 9 | DM20: 0.3420627236 | DO20: 9 | EA20: 0.3416272552 | EC20: 9 | EO20: 0.3413676499 | EQ20: 9 | FC20: 0.3412271971 | FE20: 9 | FQ20: 0.3411542854 | FS20: 9 | GE20: 0.3410795748 | GG20: 9 | GS20: 0.3409247311 | GU20: 9
A21: 15 | U21: deltax123 | V21: =PI()/20 -> 0.1570796327 | AB21: 4 | AC21: 1.40625 | AE21: deltax123 = Pi / 20 | AS21: deltax123 | AT21: =PI()/20 -> 0.1570796327 | AZ21: aker2 = CDbl(int2 * Pi / 2) | BO21: deltax123 | BP21: =PI()/20 -> 0.1570796327 | CD21: deltax123 | CE21: =PI()/20 -> 0.1570796327 | CR21: deltax123 | CS21: =PI()/20 -> 0.1570796327 | DF21: deltax123 | DG21: =PI()/20 -> 0.1570796327 | DT21: deltax123 | DU21: =PI()/20 -> 0.1570796327 | EH21: deltax123 | EI21: =PI()/20 -> 0.1570796327 | EV21: deltax123 | EW21: =PI()/20 -> 0.1570796327 | FJ21: deltax123 | FK21: =PI()/20 -> 0.1570796327 | FX21: deltax123 | FY21: =PI()/20 -> 0.1570796327 | GL21: deltax123 | GM21: =PI()/20 -> 0.1570796327 | GZ21: deltax123 | HA21: =PI()/20 -> 0.1570796327
A22: 16 | N22: Z(φ,k) | Q22: F(φ,k) | AA22: E(φ,k) | AB22: 5 | AC22: 0.703125 | AE22: If Abs(deltax123) < 0.0000000001 Then | AL22: Z(φ,k) | AO22: F(φ,k) | AU22: Sarxiko | AV22: S''/AK | AW22: =scurrent/polepsilon -> 38.34201926 | AY22: E(φ,k) | AZ22: x1a = x - aker1 ' äßíåé ôï ðüóï ìåãáëýôåñï áðü ôï ðïëëáðëÜóéï ôïõ ð åßíáé ôï ÷ | BH22: Z(φ,k) | BK22: F(φ,k) | BS22: =SARX -> 39.12505712 | BU22: E(φ,k) | BW22: Z(φ,k) | BZ22: F(φ,k) | CH22: =SARX -> 39.12505712 | CJ22: E(φ,k) | CK22: Z(φ,k) | CN22: F(φ,k) | CV22: =SARX -> 39.12505712 | CX22: E(φ,k) | CY22: Z(φ,k) | DB22: F(φ,k) | DJ22: =SARX -> 39.12505712 | DL22: E(φ,k) | DM22: Z(φ,k) | DP22: F(φ,k) | DX22: =SARX -> 39.12505712 | DZ22: E(φ,k) | EA22: Z(φ,k) | ED22: F(φ,k) | EL22: =SARX -> 39.12505712 | EN22: E(φ,k) | EO22: Z(φ,k) | ER22: F(φ,k) | EZ22: =SARX -> 39.12505712 | FB22: E(φ,k) | FC22: Z(φ,k) | FF22: F(φ,k) | FN22: =SARX -> 39.12505712 | FP22: E(φ,k) | FQ22: Z(φ,k) | FT22: F(φ,k) | GB22: =SARX -> 39.12505712 | GD22: E(φ,k) | GE22: Z(φ,k) | GH22: F(φ,k) | GP22: =SARX -> 39.12505712 | GR22: E(φ,k) | GS22: Z(φ,k) | GV22: F(φ,k) | HD22: =SARX -> 39.12505712 | HF22: E(φ,k)
A23: 17 | N23: =MAX(N12:N20) -> 0.3419362078 | O23: =MAX(O12:O19) -> 0.6294415941 | Q23: =MAX(Q12:Q20) -> 1.31884522 | AA23: =N23+O25/AA9*Q23 -> 0.8306453903 | AB23: 6 | AC23: 0.3515625 | AE23: antieLLE2 = x1 | AL23: =MAX(AL12:AL20) -> 0.3420471789 | AM23: =MAX(AM12:AM19) -> 0.6451710617 | AO23: =MAX(AO12:AO20) -> 1.324390241 | AU23: S me diorthos | AV23: S'/AK | AW23: =ARPLIRON*eplires+AY23 -> 39.12505712 | AY23: =AL23+AM25/AY9*AO23 -> 0.8119791619 | AZ23: x2a = aker1 + Pi - x 'äßíåé ôï ðáñáðëÞñùìá áðü ôï ðé | BH23: =MAX(BH12:BH20) -> 0.3812158836 | BI23: =MAX(BI12:BI19) -> 0.7454608837 | BK23: =MAX(BK12:BK20) -> 2.069463144 | BR23: SDOKIMI2 | BS23: =ARPLIRON*eplires+BU23 -> 39.22105316 | BU23: =BH23+BI25/BU9*BK23 -> 0.9079752036 | BW23: =MAX(BW12:BW20) -> 0.3715229232 | BX23: =MAX(BX12:BX19) -> 0.6883715425 | BZ23: =MAX(BZ12:BZ20) -> 1.688100134 | CG23: SDOKIMI3 | CH23: =ARPLIRON*eplires+CJ23 -> 39.21066092 | CJ23: =BW23+BX25/CJ9*BZ23 -> 0.8975829642 | CK23: =MAX(CK12:CK20) -> 0.351851716 | CL23: =MAX(CL12:CL19) -> 0.6652991697 | CN23: =MAX(CN12:CN20) -> 1.504039444 | CV23: =ARPLIRON*eplires+CX23 -> 39.16833293 | CX23: =CK23+CL25/CX9*CN23 -> 0.8552549668 | CY23: =MAX(CY12:CY20) -> 0.3428116407 | CZ23: =MAX(CZ12:CZ19) -> 0.6548964154 | DB23: =MAX(DB12:DB20) -> 1.41367395 | DJ23: =ARPLIRON*eplires+DL23 -> 39.14375355 | DL23: =CY23+CZ25/DL9*DB23 -> 0.8306755884 | DM23: =MAX(DM12:DM20) -> 0.3426597053 | DN23: =MAX(DN12:DN19) -> 0.6499524957 | DP23: =MAX(DP12:DP20) -> 1.368898731 | DX23: =ARPLIRON*eplires+DZ23 -> 39.13491725 | DZ23: =DM23+DN25/DZ9*DP23 -> 0.8218392899 | EA23: =MAX(EA12:EA20) -> 0.3424135667 | EB23: =MAX(EB12:EB19) -> 0.6475418825 | ED23: =MAX(ED12:ED20) -> 1.346611408 | EL23: =ARPLIRON*eplires+EN23 -> 39.13011565 | EN23: =EA23+EB25/EN9*ED23 -> 0.8170376884 | EO23: =MAX(EO12:EO20) -> 0.3422457174 | EP23: =MAX(EP12:EP19) -> 0.646351549 | ER23: =MAX(ER12:ER20) -> 1.335492589 | EZ23: =ARPLIRON*eplires+FB23 -> 39.12761856 | FB23: =EO23+EP25/FB9*ER23 -> 0.8145406029 | FC23: =MAX(FC12:FC20) -> 0.3421503231 | FD23: =MAX(FD12:FD19) -> 0.6457600809 | FF23: =MAX(FF12:FF20) -> 1.329939361 | FN23: =ARPLIRON*eplires+FP23 -> 39.1263459 | FP23: =FC23+FD25/FP9*FF23 -> 0.8132679347 | FQ23: =MAX(FQ12:FQ20) -> 0.3420997246 | FR23: =MAX(FR12:FR19) -> 0.645465266 | FT23: =MAX(FT12:FT20) -> 1.327164288 | GB23: =ARPLIRON*eplires+GD23 -> 39.12570352 | GD23: =FQ23+FR25/GD9*FT23 -> 0.8126255623 | GE23: =MAX(GE12:GE20) -> 0.3420471789 | GF23: =MAX(GF12:GF19) -> 0.6451710617 | GH23: =MAX(GH12:GH20) -> 1.324390241 | GP23: =ARPLIRON*eplires+GR23 -> 39.12505712 | GR23: =GE23+GF25/GR9*GH23 -> 0.8119791619 | GS23: =MAX(GS12:GS20) -> 0.3419362078 | GT23: =MAX(GT12:GT19) -> 0.644584479 | GV23: =MAX(GV12:GV20) -> 1.31884522 | HD23: =ARPLIRON*eplires+HF23 -> 39.12375223 | HF23: =GS23+GT25/HF9*GV23 -> 0.8106742689
A24: 18 | O24: =1-O23 -> 0.3705584059 | AB24: 7 | AC24: 0.17578125 | AE24: Exit Function | AM24: =1-AM23 -> 0.3548289383 | AZ24: eplires1 = elle(Pi / 2, ak) ' äßíåé ôï Å ãéá äåäïìÝíï alfa | BI24: =1-BI23 -> 0.2545391163 | BX24: =1-BX23 -> 0.3116284575 | CL24: =1-CL23 -> 0.3347008303 | CZ24: =1-CZ23 -> 0.3451035846 | DN24: =1-DN23 -> 0.3500475043 | EB24: =1-EB23 -> 0.3524581175 | EP24: =1-EP23 -> 0.353648451 | FD24: =1-FD23 -> 0.3542399191 | FR24: =1-FR23 -> 0.354534734 | GF24: =1-GF23 -> 0.3548289383 | GT24: =1-GT23 -> 0.355415521
A25: 19 | N25: E(K) | O25: =O24*AA9 -> 1.064252166 | W25: =kapaelliptic -> 0.9726663923 | AB25: 8 | AC25: 0.087890625 | AE25: End If | AL25: E(K) | AM25: =AM24*AY9 -> 1.019076777 | AT25: kapa | AU25: =Maxy*kapa/SQRT(1+(Maxy*kapa)^2) -> 0.9726663923 | AZ25: If int2 Mod 2 = 1 Then | BH25: E(K) | BI25: =BI24*BU9 -> 0.7310421284 | BQ25: =Maxy*kapa/SQRT(1+(Maxy*kapa)^2) -> 0.9726663923 | BW25: E(K) | BX25: =BX24*CJ9 -> 0.8950040142 | CF25: =Maxy*kapa/SQRT(1+(Maxy*kapa)^2) -> 0.9726663923 | CK25: E(K) | CL25: =CL24*CX9 -> 0.9612683933 | CT25: =Maxy*kapa/SQRT(1+(Maxy*kapa)^2) -> 0.9726663923 | CY25: E(K) | CZ25: =CZ24*DL9 -> 0.99114534 | DH25: =Maxy*kapa/SQRT(1+(Maxy*kapa)^2) -> 0.9726663923 | DM25: E(K) | DN25: =DN24*DZ9 -> 1.00534439 | DV25: =Maxy*kapa/SQRT(1+(Maxy*kapa)^2) -> 0.9726663923 | EA25: E(K) | EB25: =EB24*EN9 -> 1.012267726 | EJ25: =Maxy*kapa/SQRT(1+(Maxy*kapa)^2) -> 0.9726663923 | EO25: E(K) | EP25: =EP24*FB9 -> 1.015686391 | EX25: =Maxy*kapa/SQRT(1+(Maxy*kapa)^2) -> 0.9726663923 | FC25: E(K) | FD25: =FD24*FP9 -> 1.0173851 | FL25: =Maxy*kapa/SQRT(1+(Maxy*kapa)^2) -> 0.9726663923 | FQ25: E(K) | FR25: =FR24*GD9 -> 1.018231816 | FZ25: =Maxy*kapa/SQRT(1+(Maxy*kapa)^2) -> 0.9726663923 | GE25: E(K) | GF25: =GF24*GR9 -> 1.019076777 | GN25: =Maxy*kapa/SQRT(1+(Maxy*kapa)^2) -> 0.9726663923 | GS25: E(K) | GT25: =GT24*HF9 -> 1.020761456 | HB25: =Maxy*kapa/SQRT(1+(Maxy*kapa)^2) -> 0.9726663923
A26: 20 | T26: t | U26: s | V26: Int(s/E) | W26: pi/4+pi/2*n1 | AB26: 9 | AC26: 0.0439453125 | AE26: asdf = elle2(x1, ak) | AR26: t | AS26: s | AT26: Int(s/E) | AU26: pi/4+pi/2*n1 | AZ26: asfa1 = elle(x2a, ak) | BN26: t | BO26: s | BP26: Int(s/E) | BQ26: pi/4+pi/2*n1
A27: 21 | T27: 0 | U27: 0 | V27: =U27/eplires -> 0 | W27: =PI()/4+PI()/2*V27 -> 0.7853981634 | AB27: 10 | AC27: 0.02197265625 | AE27: If S11 > asdf Then | AR27: 0 | AS27: 0 | AT27: =AS27/eplires -> 0 | AU27: =PI()/4+PI()/2*AT27 -> 0.7853981634 | AZ27: 'MsgBox ("x = " & Format(x, "0.00") & "asfa1 = " & Format(asfa1, "0.000") & "epli = " & Format(eplires1, "0.000")) | BN27: 0 | BO27: 0 | BP27: =BO27/eplires -> 0 | BQ27: =PI()/4+PI()/2*BP27 -> 0.7853981634
A28: 22 | Q28: =ELLE2(S12,SIN(arxikigon/2)) ->  | T28: =T27+dt -> 0.1 | U28: =v0*T28+1/2*accelaration*T28^2 -> 1.48 | V28: =INT(U28/eplires) -> 1 | W28: =PI()/4+PI()/2*V28 -> 2.35619449 | AC28: =SUM(AC17:AC27) -> 44.97802734 | AE28: xero1 = 1 | AO28: =ELLE2(AQ12,SIN(arxikigon/2)) ->  | AR28: =AR27+dt -> 0.1 | AS28: =v0*AR28+1/2*accelaration*AR28^2 -> 1.48 | AT28: =INT(AS28/eplires) -> 1 | AU28: =PI()/4+PI()/2*AT28 -> 2.35619449 | AZ28: elle2 = (int2 + 1) * eplires1 - asfa1 | BK28: =ELLE2(BM12,SIN(arxikigon/2)) ->  | BN28: =BN27+dt -> 0.1 | BO28: =v0*BN28+1/2*accelaration*BN28^2 -> 1.48 | BP28: =INT(BO28/eplires) -> 1 | BQ28: =PI()/4+PI()/2*BP28 -> 2.35619449
T29: 0.2 | U29: 2.92 | V29: 2 | W29: =PI()/4+PI()/2*V29 -> 3.926990817 | AE29: Else | AR29: 0.2 | AS29: 2.92 | AT29: 2 | AU29: =PI()/4+PI()/2*AT29 -> 3.926990817 | AZ29: Exit Function | BN29: 0.2 | BO29: 2.92 | BP29: 2 | BQ29: =PI()/4+PI()/2*BP29 -> 3.926990817
T30: 0.3 | U30: 4.32 | V30: 4 | W30: 7.068583471 | AE30: xero1 = -1 | AR30: 0.3 | AS30: 4.32 | AT30: 4 | AU30: 7.068583471 | AZ30: ElseIf int2 Mod 2 = 0 Then | BN30: 0.3 | BO30: 4.32 | BP30: 4 | BQ30: 7.068583471
T31: 0.4 | U31: 5.68 | V31: 5 | W31: 8.639379797 | AE31: End If | AR31: 0.4 | AS31: 5.68 | AT31: 5 | AU31: 8.639379797 | AZ31: asfa2 = elle(x1a, ak) | BN31: 0.4 | BO31: 5.68 | BP31: 5 | BQ31: 8.639379797
T32: 0.5 | U32: 7 | V32: 6 | W32: 10.21017612 | AE32: metritis = 1 | AR32: 0.5 | AS32: 7 | AT32: 6 | AU32: 10.21017612 | AZ32: elle2 = (int2) * eplires1 + asfa2 | BN32: 0.5 | BO32: 7 | BP32: 6 | BQ32: 10.21017612
T33: 0.6 | U33: 8.28 | V33: 7 | W33: 11.78097245 | AE33: While Abs(S11 - asdf) > 0.0001 | AZ33: End If
T34: 0.7 | U34: 9.52 | V34: 8 | W34: 13.35176878 | AE34: xana:
T35: 0.8 | U35: 10.72 | V35: 10 | W35: 16.49336143 | AE35: If S11 > asdf Then | AZ35: End Function
T36: 0.9 | U36: 11.88 | V36: 11 | W36: 18.06415776 | AE36: x1 = x1 + deltax123
T37: 1 | U37: 13 | V37: 12 | W37: 19.63495408 | AE37: Else | AZ37: Function elle(phi, ak)
T38: 1.1 | U38: 14.08 | V38: 13 | W38: 21.20575041 | AE38: x1 = x1 - deltax123 | AZ38: Dim CC, Q, S As Double
T39: 1.2 | U39: 15.12 | V39: 14 | W39: 22.77654674 | AE39: End If | AZ39: S = Sin(phi)
T40: 1.3 | U40: 16.12 | V40: 15 | W40: 24.34734307 | AE40: asdf = elle2(x1, ak) | AZ40: CC = Cos(phi) * Cos(phi)
T41: 1.4 | U41: 17.08 | V41: 16 | W41: 25.91813939 | AE41: If S11 > asdf And xero1 > 0 Then | AZ41: Q = (1 - S * ak) * (1 + S * ak)
T42: 1.5 | U42: 18 | V42: 16 | W42: 25.91813939 | AE42: GoTo xana | AZ42: 'MsgBox ("ak = " & Format(ak, "0.00"))
T43: 1.6 | U43: 18.88 | V43: 17 | W43: 27.48893572 | AE43: ElseIf S11 < asdf And xero1 > 0 Then | AZ43: 'MsgBox ("rf = " & Format(rf(CC, Q, 1), "0.0000"))
T44: 1.7 | U44: 19.72 | V44: 18 | W44: 29.05973205 | AE44: xero1 = -1 | AZ44: 'MsgBox ("rd = " & Format(rd(CC, Q, 1), "0.000"))
T45: 1.8 | U45: 20.52 | V45: 19 | W45: 30.63052837 | AE45: deltax123 = deltax123 / 2 | AZ45: elle11 = S * (rf(CC, Q, 1) - (S * ak) ^ 2 * rd(CC, Q, 1) / 3)
T46: 1.9 | U46: 21.28 | V46: 19 | W46: 30.63052837 | AE46: If Abs(deltax123) < 0.00000000001 Then | AZ46: 'MsgBox ("elle = " & Format(elle11, "0.000"))
T47: 2 | U47: 22 | V47: 20 | W47: 32.2013247 | AE47: antieLLE2 = x1 | AZ47: elle = elle11
T48: 2.1 | U48: 22.68 | V48: 21 | W48: 33.77212103 | AE48: Exit Function | AZ48: End Function
T49: 2.2 | U49: 23.32 | V49: 21 | W49: 33.77212103 | AE49: End If
T50: 2.3 | U50: 23.92 | V50: 22 | W50: 35.34291735 | AE50: GoTo xana
T51: 2.4 | U51: 24.48 | V51: 23 | W51: 36.91371368 | AE51: ElseIf S11 < asdf And xero1 < 0 Then
T52: 2.5 | U52: 25 | V52: 23 | W52: 36.91371368 | AE52: GoTo xana
T53: 2.6 | U53: 25.48 | V53: 23 | W53: 36.91371368 | AE53: ElseIf S11 > asdf And xero1 < 0 Then
T54: 2.7 | U54: 25.92 | V54: 24 | W54: 38.48451001 | AE54: xero1 = 1
T55: 2.8 | U55: 26.32 | V55: 24 | W55: 38.48451001 | AE55: deltax123 = deltax123 / 2
T56: 2.9 | U56: 26.68 | V56: 25 | W56: 40.05530633 | AE56: If Abs(deltax123) < 0.00000000001 Then
T57: 3 | U57: 27 | V57: 25 | W57: 40.05530633 | AE57: antieLLE2 = x1
T58: 3.1 | U58: 27.28 | V58: 25 | W58: 40.05530633 | AE58: Exit Function
T59: 3.2 | U59: 27.52 | V59: 25 | W59: 40.05530633 | AE59: End If
T60: =T59+dt -> 3.3 | U60: =v0*T60+1/2*accelaration*T60^2 -> 27.72 | V60: =INT(U60/eplires) -> 26 | W60: 41.62610266
T61: 3.4 | U61: 27.88 | V61: 26 | W61: 41.62610266 | AE61: GoTo xana
T62: 3.5 | U62: 28 | V62: 26 | W62: 41.62610266 | AE62: End If
T63: 3.6 | U63: 28.08 | V63: 26 | W63: 41.62610266 | AE63: metritis = metritis + 1
T64: 3.7 | U64: 28.12 | V64: 26 | W64: 41.62610266 | AE64: If metritis > 10 Then GoTo exoloop
T65: 3.8 | U65: 28.12 | V65: 26 | W65: 41.62610266 | AE65: Wend
T66: 3.9 | U66: 28.08 | V66: 26 | W66: 41.62610266 | AE66: exoloop:
T67: 4 | U67: 28 | V67: 26 | W67: 41.62610266 | AE67: telospanton:
T68: 4.1 | U68: 27.88 | V68: 26 | W68: 41.62610266 | AE68: antieLLE2 = x1
T69: 4.2 | U69: 27.72 | V69: 26 | W69: 41.62610266 | AE69: End Function
T70: 4.3 | U70: 27.52 | V70: 25 | W70: 40.05530633
T71: 4.4 | U71: 27.28 | V71: 25 | W71: 40.05530633
T72: 4.5 | U72: 27 | V72: 25 | W72: 40.05530633
T73: 4.6 | U73: 26.68 | V73: 25 | W73: 40.05530633
T74: 4.7 | U74: 26.32 | V74: 24 | W74: 38.48451001
T75: 4.8 | U75: 25.92 | V75: 24 | W75: 38.48451001
T76: 4.9 | U76: 25.48 | V76: 23 | W76: 36.91371368
T77: 5 | U77: 25 | V77: 23 | W77: 36.91371368
T78: 5.1 | U78: 24.48 | V78: 23 | W78: 36.91371368
T79: 5.2 | U79: 23.92 | V79: 22 | W79: 35.34291735
T80: 5.3 | U80: 23.32 | V80: 21 | W80: 33.77212103
T81: 5.4 | U81: 22.68 | V81: 21 | W81: 33.77212103
T82: 5.5 | U82: 22 | V82: 20 | W82: 32.2013247
T83: 5.6 | U83: 21.28 | V83: 19 | W83: 30.63052837
T84: 5.7 | U84: 20.52 | V84: 19 | W84: 30.63052837
T85: 5.8 | U85: 19.72 | V85: 18 | W85: 29.05973205
T86: 5.9 | U86: 18.88 | V86: 17 | W86: 27.48893572
T87: 6 | U87: 18 | V87: 16 | W87: 25.91813939
T88: 6.1 | U88: 17.08 | V88: 16 | W88: 25.91813939
T89: 6.2 | U89: 16.12 | V89: 15 | W89: 24.34734307
T90: 6.3 | U90: 15.12 | V90: 14 | W90: 22.77654674
T91: 6.4 | U91: 14.08 | V91: 13 | W91: 21.20575041
T92: =T91+dt -> 6.5 | U92: =v0*T92+1/2*accelaration*T92^2 -> 13 | V92: =INT(U92/eplires) -> 12 | W92: 19.63495408
T93: 6.6 | U93: 11.88 | V93: 11 | W93: =PI()/4+PI()/2*V93 -> 18.06415776
T94: 6.7 | U94: 10.72 | V94: 10 | W94: 16.49336143
T95: 6.8 | U95: 9.52 | V95: 8 | W95: 13.35176878
T96: 6.9 | U96: 8.28 | V96: 7 | W96: 11.78097245
T97: 7 | U97: 7 | V97: 6 | W97: 10.21017612
T98: 7.1 | U98: 5.68 | V98: 5 | W98: 8.639379797
T99: 7.2 | U99: 4.32 | V99: 4 | W99: 7.068583471
T100: 7.3 | U100: 2.92 | V100: 2 | W100: 3.926990817
T101: 7.4 | U101: 1.48 | V101: 1 | W101: 2.35619449
T102: 7.5 | U102: 1.563194019e-13 | V102: 0 | W102: 0.7853981634
T103: 7.6 | U103: -1.52 | V103: -2 | W103: -2.35619449
T104: 7.7 | U104: -3.08 | V104: -3 | W104: -3.926990817
T105: 7.8 | U105: -4.68 | V105: -5 | W105: -7.068583471
T106: 7.9 | U106: -6.32 | V106: -6 | W106: -8.639379797
T107: 8 | U107: -8 | V107: -8 | W107: -11.78097245
T108: 8.1 | U108: -9.72 | V108: -10 | W108: -14.9225651
T109: 8.2 | U109: -11.48 | V109: -11 | W109: -16.49336143
T110: 8.3 | U110: -13.28 | V110: -13 | W110: -19.63495408
T111: 8.4 | U111: -15.12 | V111: -15 | W111: -22.77654674
T112: 8.5 | U112: -17 | V112: -16 | W112: -24.34734307
T113: 8.6 | U113: -18.92 | V113: -18 | W113: -27.48893572
T114: 8.7 | U114: -20.88 | V114: -20 | W114: -30.63052837
T115: 8.8 | U115: -22.88 | V115: -22 | W115: -33.77212103
T116: 8.9 | U116: -24.92 | V116: -24 | W116: -36.91371368
T117: 9 | U117: -27 | V117: -26 | W117: -40.05530633
T118: 9.1 | U118: -29.12 | V118: -28 | W118: -43.19689899
T119: 9.2 | U119: -31.28 | V119: -30 | W119: -46.33849164
T120: 9.3 | U120: -33.48 | V120: -32 | W120: -49.48008429
T121: 9.4 | U121: -35.72 | V121: -34 | W121: -52.62167695
T122: 9.5 | U122: -38 | V122: -36 | W122: -55.7632696
T123: 9.6 | U123: -40.32 | V123: -38 | W123: -58.90486225
T124: =T123+dt -> 9.7 | U124: =v0*T124+1/2*accelaration*T124^2 -> -42.68 | V124: =INT(U124/eplires) -> -41 | W124: -63.61725124
T125: 9.8 | U125: -45.08 | V125: -43 | W125: -66.75884389
T126: 9.9 | U126: -47.52 | V126: -45 | W126: -69.90043654
T127: 10 | U127: -50 | V127: -47 | W127: -73.0420292
T128: 10.1 | U128: -52.52 | V128: -50 | W128: -77.75441818
T129: 10.2 | U129: -55.08 | V129: -52 | W129: -80.89601083
T130: 10.3 | U130: -57.68 | V130: -55 | W130: -85.60839981
T131: 10.4 | U131: -60.32 | V131: -57 | W131: -88.74999246
T132: 10.5 | U132: -63 | V132: -60 | W132: -93.46238144
T133: 10.6 | U133: -65.72 | V133: -62 | W133: -96.6039741
T134: 10.7 | U134: -68.48 | V134: -65 | W134: -101.3163631
T135: 10.8 | U135: -71.28 | V135: -67 | W135: -104.4579557
T136: 10.9 | U136: -74.12 | V136: -70 | W136: -109.1703447
T137: 11 | U137: -77 | V137: -73 | W137: -113.8827337
T138: 11.1 | U138: -79.92 | V138: -76 | W138: -118.5951227
T139: 11.2 | U139: -82.88 | V139: -78 | W139: -121.7367153
T140: 11.3 | U140: -85.88 | V140: -81 | W140: -126.4491043
T141: 11.4 | U141: -88.92 | V141: -84 | W141: -131.1614933
T142: 11.5 | U142: -92 | V142: -87 | W142: -135.8738823
T143: 11.6 | U143: -95.12 | V143: -90 | W143: -140.5862712
T144: 11.7 | U144: -98.28 | V144: -93 | W144: -145.2986602
T145: 11.8 | U145: -101.48 | V145: -96 | W145: -150.0110492
T146: 11.9 | U146: -104.72 | V146: -99 | W146: -154.7234382
T147: 12 | U147: -108 | V147: -102 | W147: -159.4358272
T148: 12.1 | U148: -111.32 | V148: -105 | W148: -164.1482162
T149: 12.2 | U149: -114.68 | V149: -108 | W149: -168.8606051
